Workbook

Sheet PMT
A1: =ROW()&")" -> 1) | B1: PMT means periodic payment (same amount each period)
A2: 2) | B2: PMT function calculates the period payment for a loan (For the Borrower or the Lender). The Amount of each PMT must be the same and the time between each PMT must be the same.
A3: 3) | B3: Cash Flow matters in Finance. Cash going out of the wallet is negative. Cash coming into the wallet is positive.
A4: 4) | B4: For the borrow the PV is positive, the PMT is negative, and the FV is negative. For the Lender the PV is negative, the PMT is positive, and the FV is positive.
A5: 5) | B5: Be consistent with your unit of time! If you are calculating monthly payment, you need monthly interest rate and total number of months! (The period can be monthly, quarterly, yearly or any other length).
A6: 6) | B6: =PMT(rate = period rate, nper = total number of periods, pv means amount invested or lent out today, fv means amount received after all the periods have elapsed or amount paid after all the periods have elapsed, type refers to the PMT: PMT at end of period = 0, PMT at beginning of period = 1)
A7: 7) | B7: =FV(rate = period rate, nper = total number of periods, pmt means periodic payment, pv means amount invested or lent out today, type refers to the PMT: PMT at end of period = 0, PMT at beginning of period = 1)
A9: 1 | B9: ="Borrower Point of View: At an "&D10&" of "&TEXT(E10,"0.00%")&" the monthly PMT paid = "&DOLLAR(PMT(E10/E14,E12*E14,C10-C11)) -> Borrower Point of View: At an Annual Interest Rate of 6.50% the monthly PMT paid = ($485.22)
B10: Price of Car | C10: 34799 | D10: Annual Interest Rate | E10: 0.065
B11: Down Payment | C11: 10000 | D11: Monthly Interest Rate
B12: Loan Amount | D12: Years for Loan | E12: 5
B13: PMT end of period | D13: Total Months
B14: Monthly Payment | C14: =-C12/((1-(1+E10/E14)^(-E12*E14))/(E10/E14)) -> 0 | D14: Periods per Year | E14: 12
B15: PMT begin of period | D15: Type, 0 = End, 1 = Beg | E15: 1
A17: 2 | B17: ="Lender Point of view: At an "&D18&" of "&TEXT(E18,"0.00%")&" the monthly PMT received = "&DOLLAR(PMT(E19,E21,C20)) -> Lender Point of view: At an Annual Interest Rate of 6.50% the monthly PMT received = $485.22
B18: Price of Car | C18: =C10 -> 34799 | D18: Annual Interest Rate | E18: =E10 -> 0.065
B19: Down Payment | C19: =C11 -> 10000 | D19: Monthly Interest Rate | E19: =E18/E22 -> 0.005416666667
B20: Loan Amount | C20: =-(C18-C19) -> -24799 | D20: Years for Loan | E20: =E12 -> 5
B21: Monthly Payment | D21: Total Months | E21: =E20*E22 -> 60
B22: Monthly Payment | C22: =-(C20/((1-(1+E18/E22)^(-E20*E22))/(E18/E22))) -> 485.2209097 | D22: Periods per Year | E22: =E14 -> 12
A24: 3 | B24: ="At an "&D25&" of "&TEXT(E25,"0.00%")&" and a balloon payment of "&DOLLAR(-C28)&" at the end of "&E28&" months, the monthly PMT = "&DOLLAR(PMT(E26,E28,C27,C28))&" - Borrower's Point of View." -> At an Annual Interest Rate of 5.25% and a balloon payment of $5,000.00 at the end of 36 months, the monthly PMT = ($1,225.21) - Borrower's Point of View.
B25: Price of Car | C25: 50000 | D25: Annual Interest Rate | E25: 0.0525
B26: Down Payment | C26: 5000 | D26: Monthly Interest Rate | E26: =E25/E29 -> 0.004375
B27: Loan Amount | C27: =C25-C26 -> 45000 | D27: Years for Loan | E27: 3
B28: Balloon Payment | C28: -5000 | D28: Total Months | E28: =E27*E29 -> 36
B29: Monthly Payment | D29: Periods per Year | E29: 12
A31: 4 | B31: ="At an "&D32&" of "&TEXT(E32,"0.00%")&" and no payments during the first year, the PMT = "&DOLLAR(C36)&" - Borrower's Point of View." -> At an Annual Interest Rate of 8.50% and no payments during the first year, the PMT = ($67,328.25) - Borrower's Point of View.
B32: Loan Amount | C32: 1000000 | D32: Annual Interest Rate | E32: 0.085
B33: Years payment is put off | C33: 1 | D33: Period Interest Rate | E33: =E32/E36 -> 0.02125
B34: FV after 1 year | D34: Years for Loan | E34: 6
B35: Period Payment | D35: Total Periods | E35: =E34*E36 -> 24
B36: Period Payment | C36: =PMT(E33,(E34-C33)*E36,FV(E33,C33*E36,,-C32)) -> -67328.25019 | D36: Periods per Year | E36: 4 | H36: check | I36: =C32*(1+E33)^E36 -> 1087747.962

Sheet PMT (an)
A1: =ROW()&")" -> 1) | B1: PMT means periodic payment (same amount each period)
A2: 2) | B2: PMT function calculates the period payment for a loan (For the Borrower or the Lender). The Amount of each PMT must be the same and the time between each PMT must be the same.
A3: 3) | B3: Cash Flow matters in Finance. Cash going out of the wallet is negative. Cash coming into the wallet is positive.
A4: 4) | B4: For the borrow the PV is positive, the PMT is negative, and the FV is negative. For the Lender the PV is negative, the PMT is positive, and the FV is positive.
A5: 5) | B5: Be consistent with your unit of time! If you are calculating monthly payment, you need monthly interest rate and total number of months! (The period can be monthly, quarterly, yearly or any other length).
A6: 6) | B6: =PMT(rate = period rate, nper = total number of periods, pv means amount invested or lent out today, fv means amount received after all the periods have elapsed or amount paid after all the periods have elapsed, type refers to the PMT: PMT at end of period = 0, PMT at beginning of period = 1)
A7: 7) | B7: =FV(rate = period rate, nper = total number of periods, pmt means periodic payment, pv means amount invested or lent out today, type refers to the PMT: PMT at end of period = 0, PMT at beginning of period = 1)
A9: 1 | B9: ="Borrower Point of View: At an "&D10&" of "&TEXT(E10,"0.00%")&" the monthly PMT paid = "&DOLLAR(C13) -> Borrower Point of View: At an Annual Interest Rate of 6.50% the monthly PMT paid = ($485.22)
B10: Price of Car | C10: 34799 | D10: Annual Interest Rate | E10: 0.065
B11: Down Payment | C11: 10000 | D11: Monthly Interest Rate | E11: =E10/E14 -> 0.005416666667
B12: Loan Amount | C12: =C10-C11 -> 24799 | D12: Years for Loan | E12: 5
B13: PMT end of period | C13: =PMT(E11,E13,C12) -> -485.2209097 | D13: Total Months | E13: =E12*E14 -> 60
B14: Monthly Payment | C14: =-C12/((1-(1+E10/E14)^(-E12*E14))/(E10/E14)) -> -485.2209097 | D14: Periods per Year | E14: 12
B15: PMT begin of period | C15: =PMT(E11,E13,C12,,E15) -> -482.6067896 | D15: Type, 0 = End, 1 = Beg | E15: 1
A17: 2 | B17: ="Lender Point of view: At an "&D18&" of "&TEXT(E18,"0.00%")&" the monthly PMT received = "&DOLLAR(C21) -> Lender Point of view: At an Annual Interest Rate of 6.50% the monthly PMT received = $485.22
B18: Price of Car | C18: =C10 -> 34799 | D18: Annual Interest Rate | E18: =E10 -> 0.065
B19: Down Payment | C19: =C11 -> 10000 | D19: Monthly Interest Rate | E19: =E18/E22 -> 0.005416666667
B20: Loan Amount | C20: =-(C18-C19) -> -24799 | D20: Years for Loan | E20: =E12 -> 5
B21: Monthly Payment | C21: =PMT(E19,E21,C20) -> 485.2209097 | D21: Total Months | E21: =E20*E22 -> 60
B22: Monthly Payment | C22: =-(C20/((1-(1+E18/E22)^(-E20*E22))/(E18/E22))) -> 485.2209097 | D22: Periods per Year | E22: =E14 -> 12
A24: 3 | B24: ="At an "&D25&" of "&TEXT(E25,"0.00%")&" and a balloon payment of "&DOLLAR(-C28)&" at the end of "&E28&" months, the monthly PMT = "&DOLLAR(PMT(E26,E28,C27,C28))&" - Borrower's Point of View." -> At an Annual Interest Rate of 5.25% and a balloon payment of $5,000.00 at the end of 36 months, the monthly PMT = ($1,225.21) - Borrower's Point of View.
B25: Price of Car | C25: 50000 | D25: Annual Interest Rate | E25: 0.0525
B26: Down Payment | C26: 5000 | D26: Monthly Interest Rate | E26: =E25/E29 -> 0.004375
B27: Loan Amount | C27: =C25-C26 -> 45000 | D27: Years for Loan | E27: 3
B28: Balloon Payment | C28: -5000 | D28: Total Months | E28: =E27*E29 -> 36
B29: Monthly Payment | C29: =PMT(E26,E28,C27,C28) -> -1225.205821 | D29: Periods per Year | E29: 12
A31: 4 | B31: ="At an "&D32&" of "&TEXT(E32,"0.00%")&" and no payments during the first year, the PMT = "&DOLLAR(C36)&" - Borrower's Point of View." -> At an Annual Interest Rate of 8.50% and no payments during the first year, the PMT = ($67,328.25) - Borrower's Point of View.
B32: Loan Amount | C32: 1000000 | D32: Annual Interest Rate | E32: 0.085
B33: Years payment is put off | C33: 1 | D33: Period Interest Rate | E33: =E32/E36 -> 0.02125
B34: FV after 1 year | C34: =-FV(E33,C33*E36,,C32) -> 1087747.962 | D34: Years for Loan | E34: 6
B35: Period Payment | C35: =PMT(E33,(E34-C33)*E36,C34) -> -67328.25019 | D35: Total Periods | E35: =E34*E36 -> 24
B36: Period Payment | C36: =PMT(E33,(E34-C33)*E36,FV(E33,C33*E36,,-C32)) -> -67328.25019 | D36: Periods per Year | E36: 4 | H36: check | I36: =C32*(1+E33)^E36 -> 1087747.962

Sheet Amortization Table == >>

Sheet Amort
A1: You just took out a business loan for 15 years at an annual rate of 9.25% compounded semi-annually. You borrowed $100,000 and a $25,000 balloon payment is due on the last day. The payments are made at the end of each period. Create an amortization table that shows how much of each payment is a reduction in principal and how much is interest payment.

Sheet (510)
A1: PMT means periodic payment (same amount each period)
A2: PMT function calculates the period payment for a loan (For the Borrower or the Lender). The Amount of each PMT must be the same and the time between each PMT must be the same.
A3: Cash Flow matters in Finance. Cash going out of the wallet is negative. Cash coming into the wallet is positive.
A4: For the borrow the PV is positive, the PMT is negative, and the FV is negative. For the Lender the PV is negative, the PMT is positive, and the FV is positive.
A5: Be consistent with your unit of time! If you are calculating monthly payment, you need monthly interest rate and total number of months! (The period can be monthly, quarterly, yearly or any other length).
A6: =PMT(rate = period rate, nper = total number of periods, pv means amount invested or lent out today, fv means amount received after all the periods have elapsed or amount paid after all the periods have elapsed, type refers to the PMT: PMT at end of period = 0, PMT at beginning of period = 1)
A8: Years | B8: Rate | C8: Periods per year | D8: Total Periods | E8: Period Rate
A9: 30 | B9: 0.0975 | C9: 12 | D9: =C9*A9 -> 360 | E9: =B9/C9 -> 0.008125
A11: Period | B11: PMT | C11: Interest | D11: Principal Paid | E11: Balance
E12: 100000

Sheet (510)an
A1: PMT means periodic payment (same amount each period)
A2: PMT function calculates the period payment for a loan (For the Borrower or the Lender). The Amount of each PMT must be the same and the time between each PMT must be the same.
A3: Cash Flow matters in Finance. Cash going out of the wallet is negative. Cash coming into the wallet is positive.
A4: For the borrow the PV is positive, the PMT is negative, and the FV is negative. For the Lender the PV is negative, the PMT is positive, and the FV is positive.
A5: Be consistent with your unit of time! If you are calculating monthly payment, you need monthly interest rate and total number of months! (The period can be monthly, quarterly, yearly or any other length).
A6: =PMT(rate = period rate, nper = total number of periods, pv means amount invested or lent out today, fv means amount received after all the periods have elapsed or amount paid after all the periods have elapsed, type refers to the PMT: PMT at end of period = 0, PMT at beginning of period = 1)
A8: Years | B8: Rate | C8: Periods per year | D8: Total Periods | E8: Period Rate
A9: 30 | B9: 0.0975 | C9: 12 | D9: =C9*A9 -> 360 | E9: =B9/C9 -> 0.008125
A11: Period | B11: PMT | C11: Interest | D11: Principal Paid | E11: Balance
A12: =IF(ROWS(A$12:A12)-1>A$9*C$9,"",ROWS(A$12:A12)-1) -> 0 | E12: 100000
A13: =IF(ROWS(A$12:A13)-1>A$9*C$9,"",ROWS(A$12:A13)-1) -> 1 | B13: =IF(A13="","",-PMT(E$9,D$9,E$12)) -> 859.1544121 | C13: =IF(A13="","",E12*E$9) -> 812.5 | D13: =IF(A13="","",B13-C13) -> 46.65441206 | E13: =IF(A13="","",E12-D13) -> 99953.34559
A14: =IF(ROWS(A$12:A14)-1>A$9*C$9,"",ROWS(A$12:A14)-1) -> 2 | B14: =IF(A14="","",-PMT(E$9,D$9,E$12)) -> 859.1544121 | C14: =IF(A14="","",E13*E$9) -> 812.1209329 | D14: =IF(A14="","",B14-C14) -> 47.03347916 | E14: =IF(A14="","",E13-D14) -> 99906.31211
A15: =IF(ROWS(A$12:A15)-1>A$9*C$9,"",ROWS(A$12:A15)-1) -> 3 | B15: 859.1544121 | C15: 811.7387859 | D15: 47.41562617 | E15: 99858.89648
A16: =IF(ROWS(A$12:A16)-1>A$9*C$9,"",ROWS(A$12:A16)-1) -> 4 | B16: 859.1544121 | C16: 811.3535339 | D16: 47.80087814 | E16: 99811.0956
A17: =IF(ROWS(A$12:A17)-1>A$9*C$9,"",ROWS(A$12:A17)-1) -> 5 | B17: 859.1544121 | C17: 810.9651518 | D17: 48.18926027 | E17: 99762.90634
A18: =IF(ROWS(A$12:A18)-1>A$9*C$9,"",ROWS(A$12:A18)-1) -> 6 | B18: 859.1544121 | C18: 810.573614 | D18: 48.58079801 | E18: 99714.32555
A19: =IF(ROWS(A$12:A19)-1>A$9*C$9,"",ROWS(A$12:A19)-1) -> 7 | B19: 859.1544121 | C19: 810.1788951 | D19: 48.975517 | E19: 99665.35003
A20: =IF(ROWS(A$12:A20)-1>A$9*C$9,"",ROWS(A$12:A20)-1) -> 8 | B20: 859.1544121 | C20: 809.780969 | D20: 49.37344307 | E20: 99615.97659
A21: =IF(ROWS(A$12:A21)-1>A$9*C$9,"",ROWS(A$12:A21)-1) -> 9 | B21: 859.1544121 | C21: 809.3798098 | D21: 49.7746023 | E21: 99566.20198
A22: =IF(ROWS(A$12:A22)-1>A$9*C$9,"",ROWS(A$12:A22)-1) -> 10 | B22: 859.1544121 | C22: 808.9753911 | D22: 50.17902094 | E22: 99516.02296
A23: =IF(ROWS(A$12:A23)-1>A$9*C$9,"",ROWS(A$12:A23)-1) -> 11 | B23: 859.1544121 | C23: 808.5676866 | D23: 50.58672549 | E23: 99465.43624
A24: =IF(ROWS(A$12:A24)-1>A$9*C$9,"",ROWS(A$12:A24)-1) -> 12 | B24: 859.1544121 | C24: 808.1566694 | D24: 50.99774263 | E24: 99414.43849
A25: =IF(ROWS(A$12:A25)-1>A$9*C$9,"",ROWS(A$12:A25)-1) -> 13 | B25: 859.1544121 | C25: 807.7423128 | D25: 51.41209929 | E25: 99363.0264
A26: =IF(ROWS(A$12:A26)-1>A$9*C$9,"",ROWS(A$12:A26)-1) -> 14 | B26: 859.1544121 | C26: 807.3245895 | D26: 51.8298226 | E26: 99311.19657
A27: =IF(ROWS(A$12:A27)-1>A$9*C$9,"",ROWS(A$12:A27)-1) -> 15 | B27: 859.1544121 | C27: 806.9034722 | D27: 52.2509399 | E27: 99258.94563
A28: =IF(ROWS(A$12:A28)-1>A$9*C$9,"",ROWS(A$12:A28)-1) -> 16 | B28: 859.1544121 | C28: 806.4789333 | D28: 52.67547879 | E28: 99206.27015
A29: =IF(ROWS(A$12:A29)-1>A$9*C$9,"",ROWS(A$12:A29)-1) -> 17 | B29: 859.1544121 | C29: 806.050945 | D29: 53.10346706 | E29: 99153.16669
A30: =IF(ROWS(A$12:A30)-1>A$9*C$9,"",ROWS(A$12:A30)-1) -> 18 | B30: 859.1544121 | C30: 805.6194793 | D30: 53.53493273 | E30: 99099.63175
A31: =IF(ROWS(A$12:A31)-1>A$9*C$9,"",ROWS(A$12:A31)-1) -> 19 | B31: 859.1544121 | C31: 805.184508 | D31: 53.96990405 | E31: 99045.66185
A32: =IF(ROWS(A$12:A32)-1>A$9*C$9,"",ROWS(A$12:A32)-1) -> 20 | B32: 859.1544121 | C32: 804.7460025 | D32: 54.40840952 | E32: 98991.25344
A33: =IF(ROWS(A$12:A33)-1>A$9*C$9,"",ROWS(A$12:A33)-1) -> 21 | B33: 859.1544121 | C33: 804.3039342 | D33: 54.85047785 | E33: 98936.40296
A34: =IF(ROWS(A$12:A34)-1>A$9*C$9,"",ROWS(A$12:A34)-1) -> 22 | B34: 859.1544121 | C34: 803.8582741 | D34: 55.29613798 | E34: 98881.10682
A35: =IF(ROWS(A$12:A35)-1>A$9*C$9,"",ROWS(A$12:A35)-1) -> 23 | B35: 859.1544121 | C35: 803.408993 | D35: 55.74541911 | E35: 98825.36141
A36: =IF(ROWS(A$12:A36)-1>A$9*C$9,"",ROWS(A$12:A36)-1) -> 24 | B36: 859.1544121 | C36: 802.9560614 | D36: 56.19835064 | E36: 98769.16306
A37: =IF(ROWS(A$12:A37)-1>A$9*C$9,"",ROWS(A$12:A37)-1) -> 25 | B37: 859.1544121 | C37: 802.4994498 | D37: 56.65496223 | E37: 98712.50809
A38: =IF(ROWS(A$12:A38)-1>A$9*C$9,"",ROWS(A$12:A38)-1) -> 26 | B38: 859.1544121 | C38: 802.0391283 | D38: 57.1152838 | E38: 98655.39281
A39: =IF(ROWS(A$12:A39)-1>A$9*C$9,"",ROWS(A$12:A39)-1) -> 27 | B39: 859.1544121 | C39: 801.5750666 | D39: 57.57934548 | E39: 98597.81346
A40: =IF(ROWS(A$12:A40)-1>A$9*C$9,"",ROWS(A$12:A40)-1) -> 28 | B40: 859.1544121 | C40: 801.1072344 | D40: 58.04717767 | E40: 98539.76629
A41: =IF(ROWS(A$12:A41)-1>A$9*C$9,"",ROWS(A$12:A41)-1) -> 29 | B41: 859.1544121 | C41: 800.6356011 | D41: 58.51881098 | E41: 98481.24748
A42: =IF(ROWS(A$12:A42)-1>A$9*C$9,"",ROWS(A$12:A42)-1) -> 30 | B42: 859.1544121 | C42: 800.1601357 | D42: 58.99427632 | E42: 98422.2532
A43: =IF(ROWS(A$12:A43)-1>A$9*C$9,"",ROWS(A$12:A43)-1) -> 31 | B43: 859.1544121 | C43: 799.6808072 | D43: 59.47360482 | E43: 98362.77959
A44: =IF(ROWS(A$12:A44)-1>A$9*C$9,"",ROWS(A$12:A44)-1) -> 32 | B44: 859.1544121 | C44: 799.1975842 | D44: 59.95682786 | E44: 98302.82277
A45: =IF(ROWS(A$12:A45)-1>A$9*C$9,"",ROWS(A$12:A45)-1) -> 33 | B45: 859.1544121 | C45: 798.710435 | D45: 60.44397708 | E45: 98242.37879
A46: =IF(ROWS(A$12:A46)-1>A$9*C$9,"",ROWS(A$12:A46)-1) -> 34 | B46: 859.1544121 | C46: 798.2193277 | D46: 60.9350844 | E46: 98181.4437
A47: =IF(ROWS(A$12:A47)-1>A$9*C$9,"",ROWS(A$12:A47)-1) -> 35 | B47: 859.1544121 | C47: 797.7242301 | D47: 61.43018196 | E47: 98120.01352
A48: =IF(ROWS(A$12:A48)-1>A$9*C$9,"",ROWS(A$12:A48)-1) -> 36 | B48: 859.1544121 | C48: 797.2251099 | D48: 61.92930219 | E48: 98058.08422
A49: =IF(ROWS(A$12:A49)-1>A$9*C$9,"",ROWS(A$12:A49)-1) -> 37 | B49: 859.1544121 | C49: 796.7219343 | D49: 62.43247777 | E49: 97995.65174
A50: =IF(ROWS(A$12:A50)-1>A$9*C$9,"",ROWS(A$12:A50)-1) -> 38 | B50: 859.1544121 | C50: 796.2146704 | D50: 62.93974165 | E50: 97932.712
A51: =IF(ROWS(A$12:A51)-1>A$9*C$9,"",ROWS(A$12:A51)-1) -> 39 | B51: 859.1544121 | C51: 795.703285 | D51: 63.45112705 | E51: 97869.26087
A52: =IF(ROWS(A$12:A52)-1>A$9*C$9,"",ROWS(A$12:A52)-1) -> 40 | B52: 859.1544121 | C52: 795.1877446 | D52: 63.96666746 | E52: 97805.29421
A53: =IF(ROWS(A$12:A53)-1>A$9*C$9,"",ROWS(A$12:A53)-1) -> 41 | B53: 859.1544121 | C53: 794.6680154 | D53: 64.48639663 | E53: 97740.80781
A54: =IF(ROWS(A$12:A54)-1>A$9*C$9,"",ROWS(A$12:A54)-1) -> 42 | B54: 859.1544121 | C54: 794.1440635 | D54: 65.0103486 | E54: 97675.79746
A55: =IF(ROWS(A$12:A55)-1>A$9*C$9,"",ROWS(A$12:A55)-1) -> 43 | B55: 859.1544121 | C55: 793.6158544 | D55: 65.53855769 | E55: 97610.2589
A56: =IF(ROWS(A$12:A56)-1>A$9*C$9,"",ROWS(A$12:A56)-1) -> 44 | B56: 859.1544121 | C56: 793.0833536 | D56: 66.07105847 | E56: 97544.18785
A57: =IF(ROWS(A$12:A57)-1>A$9*C$9,"",ROWS(A$12:A57)-1) -> 45 | B57: 859.1544121 | C57: 792.5465262 | D57: 66.60788582 | E57: 97477.57996
A58: =IF(ROWS(A$12:A58)-1>A$9*C$9,"",ROWS(A$12:A58)-1) -> 46 | B58: 859.1544121 | C58: 792.0053372 | D58: 67.14907489 | E58: 97410.43088
A59: =IF(ROWS(A$12:A59)-1>A$9*C$9,"",ROWS(A$12:A59)-1) -> 47 | B59: 859.1544121 | C59: 791.4597509 | D59: 67.69466112 | E59: 97342.73622
A60: =IF(ROWS(A$12:A60)-1>A$9*C$9,"",ROWS(A$12:A60)-1) -> 48 | B60: 859.1544121 | C60: 790.9097318 | D60: 68.24468024 | E60: 97274.49154
A61: =IF(ROWS(A$12:A61)-1>A$9*C$9,"",ROWS(A$12:A61)-1) -> 49 | B61: 859.1544121 | C61: 790.3552438 | D61: 68.79916827 | E61: 97205.69237
A62: =IF(ROWS(A$12:A62)-1>A$9*C$9,"",ROWS(A$12:A62)-1) -> 50 | B62: 859.1544121 | C62: 789.7962505 | D62: 69.35816151 | E62: 97136.33421
A63: =IF(ROWS(A$12:A63)-1>A$9*C$9,"",ROWS(A$12:A63)-1) -> 51 | B63: 859.1544121 | C63: 789.2327155 | D63: 69.92169658 | E63: 97066.41252
A64: =IF(ROWS(A$12:A64)-1>A$9*C$9,"",ROWS(A$12:A64)-1) -> 52 | B64: 859.1544121 | C64: 788.6646017 | D64: 70.48981036 | E64: 96995.92271
A65: =IF(ROWS(A$12:A65)-1>A$9*C$9,"",ROWS(A$12:A65)-1) -> 53 | B65: 859.1544121 | C65: 788.091872 | D65: 71.06254007 | E65: 96924.86017
A66: =IF(ROWS(A$12:A66)-1>A$9*C$9,"",ROWS(A$12:A66)-1) -> 54 | B66: 859.1544121 | C66: 787.5144889 | D66: 71.63992321 | E66: 96853.22024
A67: =IF(ROWS(A$12:A67)-1>A$9*C$9,"",ROWS(A$12:A67)-1) -> 55 | B67: 859.1544121 | C67: 786.9324145 | D67: 72.22199758 | E67: 96780.99825
A68: =IF(ROWS(A$12:A68)-1>A$9*C$9,"",ROWS(A$12:A68)-1) -> 56 | B68: 859.1544121 | C68: 786.3456107 | D68: 72.80880131 | E68: 96708.18944
A69: =IF(ROWS(A$12:A69)-1>A$9*C$9,"",ROWS(A$12:A69)-1) -> 57 | B69: 859.1544121 | C69: 785.7540392 | D69: 73.40037282 | E69: 96634.78907
A70: =IF(ROWS(A$12:A70)-1>A$9*C$9,"",ROWS(A$12:A70)-1) -> 58 | B70: 859.1544121 | C70: 785.1576612 | D70: 73.99675085 | E70: 96560.79232
A71: =IF(ROWS(A$12:A71)-1>A$9*C$9,"",ROWS(A$12:A71)-1) -> 59 | B71: 859.1544121 | C71: 784.5564376 | D71: 74.59797445 | E71: 96486.19435
A72: =IF(ROWS(A$12:A72)-1>A$9*C$9,"",ROWS(A$12:A72)-1) -> 60 | B72: 859.1544121 | C72: 783.9503291 | D72: 75.204083 | E72: 96410.99026
A73: =IF(ROWS(A$12:A73)-1>A$9*C$9,"",ROWS(A$12:A73)-1) -> 61 | B73: 859.1544121 | C73: 783.3392959 | D73: 75.81511617 | E73: 96335.17515
A74: =IF(ROWS(A$12:A74)-1>A$9*C$9,"",ROWS(A$12:A74)-1) -> 62 | B74: 859.1544121 | C74: 782.7232981 | D74: 76.43111399 | E74: 96258.74403
A75: =IF(ROWS(A$12:A75)-1>A$9*C$9,"",ROWS(A$12:A75)-1) -> 63 | B75: 859.1544121 | C75: 782.1022953 | D75: 77.05211679 | E75: 96181.69192
A76: =IF(ROWS(A$12:A76)-1>A$9*C$9,"",ROWS(A$12:A76)-1) -> 64 | B76: 859.1544121 | C76: 781.4762468 | D76: 77.67816524 | E76: 96104.01375
A77: =IF(ROWS(A$12:A77)-1>A$9*C$9,"",ROWS(A$12:A77)-1) -> 65 | B77: 859.1544121 | C77: 780.8451117 | D77: 78.30930033 | E77: 96025.70445
A78: =IF(ROWS(A$12:A78)-1>A$9*C$9,"",ROWS(A$12:A78)-1) -> 66 | B78: =IF(A78="","",-PMT(E$9,D$9,E$12)) -> 859.1544121 | C78: =IF(A78="","",E77*E$9) -> 780.2088487 | D78: =IF(A78="","",B78-C78) -> 78.9455634 | E78: =IF(A78="","",E77-D78) -> 95946.75889
A79: =IF(ROWS(A$12:A79)-1>A$9*C$9,"",ROWS(A$12:A79)-1) -> 67 | B79: 859.1544121 | C79: 779.567416 | D79: 79.5869961 | E79: 95867.17189
A80: =IF(ROWS(A$12:A80)-1>A$9*C$9,"",ROWS(A$12:A80)-1) -> 68 | B80: 859.1544121 | C80: 778.9207716 | D80: 80.23364044 | E80: 95786.93825
A81: =IF(ROWS(A$12:A81)-1>A$9*C$9,"",ROWS(A$12:A81)-1) -> 69 | B81: 859.1544121 | C81: 778.2688733 | D81: 80.88553877 | E81: 95706.05271
A82: =IF(ROWS(A$12:A82)-1>A$9*C$9,"",ROWS(A$12:A82)-1) -> 70 | B82: 859.1544121 | C82: 777.6116783 | D82: 81.54273378 | E82: 95624.50998
A83: =IF(ROWS(A$12:A83)-1>A$9*C$9,"",ROWS(A$12:A83)-1) -> 71 | B83: 859.1544121 | C83: 776.9491436 | D83: 82.20526849 | E83: 95542.30471
A84: =IF(ROWS(A$12:A84)-1>A$9*C$9,"",ROWS(A$12:A84)-1) -> 72 | B84: 859.1544121 | C84: 776.2812258 | D84: 82.87318629 | E84: 95459.43152
A85: =IF(ROWS(A$12:A85)-1>A$9*C$9,"",ROWS(A$12:A85)-1) -> 73 | B85: 859.1544121 | C85: 775.6078811 | D85: 83.54653093 | E85: 95375.88499
A86: =IF(ROWS(A$12:A86)-1>A$9*C$9,"",ROWS(A$12:A86)-1) -> 74 | B86: 859.1544121 | C86: 774.9290656 | D86: 84.2253465 | E86: 95291.65965
A87: =IF(ROWS(A$12:A87)-1>A$9*C$9,"",ROWS(A$12:A87)-1) -> 75 | B87: 859.1544121 | C87: 774.2447346 | D87: 84.90967744 | E87: 95206.74997
A88: =IF(ROWS(A$12:A88)-1>A$9*C$9,"",ROWS(A$12:A88)-1) -> 76 | B88: 859.1544121 | C88: 773.5548435 | D88: 85.59956857 | E88: 95121.1504
A89: =IF(ROWS(A$12:A89)-1>A$9*C$9,"",ROWS(A$12:A89)-1) -> 77 | B89: 859.1544121 | C89: 772.859347 | D89: 86.29506506 | E89: 95034.85533
A90: =IF(ROWS(A$12:A90)-1>A$9*C$9,"",ROWS(A$12:A90)-1) -> 78 | B90: 859.1544121 | C90: 772.1581996 | D90: 86.99621246 | E90: 94947.85912
A91: =IF(ROWS(A$12:A91)-1>A$9*C$9,"",ROWS(A$12:A91)-1) -> 79 | B91: 859.1544121 | C91: 771.4513554 | D91: 87.70305669 | E91: 94860.15607
A92: =IF(ROWS(A$12:A92)-1>A$9*C$9,"",ROWS(A$12:A92)-1) -> 80 | B92: 859.1544121 | C92: 770.738768 | D92: 88.41564403 | E92: 94771.74042
A93: =IF(ROWS(A$12:A93)-1>A$9*C$9,"",ROWS(A$12:A93)-1) -> 81 | B93: 859.1544121 | C93: 770.0203909 | D93: 89.13402113 | E93: 94682.6064
A94: =IF(ROWS(A$12:A94)-1>A$9*C$9,"",ROWS(A$12:A94)-1) -> 82 | B94: 859.1544121 | C94: 769.296177 | D94: 89.85823506 | E94: 94592.74817
A95: =IF(ROWS(A$12:A95)-1>A$9*C$9,"",ROWS(A$12:A95)-1) -> 83 | B95: 859.1544121 | C95: 768.5660788 | D95: 90.58833322 | E95: 94502.15983
A96: =IF(ROWS(A$12:A96)-1>A$9*C$9,"",ROWS(A$12:A96)-1) -> 84 | B96: 859.1544121 | C96: 767.8300486 | D96: 91.32436342 | E96: 94410.83547
A97: =IF(ROWS(A$12:A97)-1>A$9*C$9,"",ROWS(A$12:A97)-1) -> 85 | B97: 859.1544121 | C97: 767.0880382 | D97: 92.06637388 | E97: 94318.76909
A98: =IF(ROWS(A$12:A98)-1>A$9*C$9,"",ROWS(A$12:A98)-1) -> 86 | B98: 859.1544121 | C98: 766.3399989 | D98: 92.81441316 | E98: 94225.95468
A99: =IF(ROWS(A$12:A99)-1>A$9*C$9,"",ROWS(A$12:A99)-1) -> 87 | B99: 859.1544121 | C99: 765.5858818 | D99: 93.56853027 | E99: 94132.38615
A100: =IF(ROWS(A$12:A100)-1>A$9*C$9,"",ROWS(A$12:A100)-1) -> 88 | B100: 859.1544121 | C100: 764.8256375 | D100: 94.32877458 | E100: 94038.05738
A101: =IF(ROWS(A$12:A101)-1>A$9*C$9,"",ROWS(A$12:A101)-1) -> 89 | B101: 859.1544121 | C101: 764.0592162 | D101: 95.09519587 | E101: 93942.96218
A102: =IF(ROWS(A$12:A102)-1>A$9*C$9,"",ROWS(A$12:A102)-1) -> 90 | B102: 859.1544121 | C102: 763.2865677 | D102: 95.86784434 | E102: 93847.09434
A103: =IF(ROWS(A$12:A103)-1>A$9*C$9,"",ROWS(A$12:A103)-1) -> 91 | B103: 859.1544121 | C103: 762.5076415 | D103: 96.64677057 | E103: 93750.44757
A104: =IF(ROWS(A$12:A104)-1>A$9*C$9,"",ROWS(A$12:A104)-1) -> 92 | B104: 859.1544121 | C104: 761.7223865 | D104: 97.43202558 | E104: 93653.01554
A105: =IF(ROWS(A$12:A105)-1>A$9*C$9,"",ROWS(A$12:A105)-1) -> 93 | B105: 859.1544121 | C105: 760.9307513 | D105: 98.22366079 | E105: 93554.79188
A106: =IF(ROWS(A$12:A106)-1>A$9*C$9,"",ROWS(A$12:A106)-1) -> 94 | B106: 859.1544121 | C106: 760.132684 | D106: 99.02172804 | E106: 93455.77015
A107: =IF(ROWS(A$12:A107)-1>A$9*C$9,"",ROWS(A$12:A107)-1) -> 95 | B107: 859.1544121 | C107: 759.3281325 | D107: 99.82627958 | E107: 93355.94387
A108: =IF(ROWS(A$12:A108)-1>A$9*C$9,"",ROWS(A$12:A108)-1) -> 96 | B108: 859.1544121 | C108: 758.517044 | D108: 100.6373681 | E108: 93255.3065
A109: =IF(ROWS(A$12:A109)-1>A$9*C$9,"",ROWS(A$12:A109)-1) -> 97 | B109: 859.1544121 | C109: 757.6993653 | D109: 101.4550467 | E109: 93153.85146
A110: =IF(ROWS(A$12:A110)-1>A$9*C$9,"",ROWS(A$12:A110)-1) -> 98 | B110: 859.1544121 | C110: 756.8750431 | D110: 102.279369 | E110: 93051.57209
A111: =IF(ROWS(A$12:A111)-1>A$9*C$9,"",ROWS(A$12:A111)-1) -> 99 | B111: 859.1544121 | C111: 756.0440232 | D111: 103.1103888 | E111: 92948.4617
A112: =IF(ROWS(A$12:A112)-1>A$9*C$9,"",ROWS(A$12:A112)-1) -> 100 | B112: 859.1544121 | C112: 755.2062513 | D112: 103.9481608 | E112: 92844.51354
A113: =IF(ROWS(A$12:A113)-1>A$9*C$9,"",ROWS(A$12:A113)-1) -> 101 | B113: 859.1544121 | C113: 754.3616725 | D113: 104.7927396 | E113: 92739.7208
A114: =IF(ROWS(A$12:A114)-1>A$9*C$9,"",ROWS(A$12:A114)-1) -> 102 | B114: 859.1544121 | C114: 753.5102315 | D114: 105.6441806 | E114: 92634.07662
A115: =IF(ROWS(A$12:A115)-1>A$9*C$9,"",ROWS(A$12:A115)-1) -> 103 | B115: 859.1544121 | C115: 752.6518725 | D115: 106.5025395 | E115: 92527.57408
A116: =IF(ROWS(A$12:A116)-1>A$9*C$9,"",ROWS(A$12:A116)-1) -> 104 | B116: 859.1544121 | C116: 751.7865394 | D116: 107.3678727 | E116: 92420.20621
A117: =IF(ROWS(A$12:A117)-1>A$9*C$9,"",ROWS(A$12:A117)-1) -> 105 | B117: 859.1544121 | C117: 750.9141754 | D117: 108.2402366 | E117: 92311.96597
A118: =IF(ROWS(A$12:A118)-1>A$9*C$9,"",ROWS(A$12:A118)-1) -> 106 | B118: 859.1544121 | C118: 750.0347235 | D118: 109.1196886 | E118: 92202.84628
A119: =IF(ROWS(A$12:A119)-1>A$9*C$9,"",ROWS(A$12:A119)-1) -> 107 | B119: 859.1544121 | C119: 749.148126 | D119: 110.006286 | E119: 92092.84
A120: =IF(ROWS(A$12:A120)-1>A$9*C$9,"",ROWS(A$12:A120)-1) -> 108 | B120: 859.1544121 | C120: 748.254325 | D120: 110.9000871 | E120: 91981.93991
A121: =IF(ROWS(A$12:A121)-1>A$9*C$9,"",ROWS(A$12:A121)-1) -> 109 | B121: 859.1544121 | C121: 747.3532618 | D121: 111.8011503 | E121: 91870.13876
A122: =IF(ROWS(A$12:A122)-1>A$9*C$9,"",ROWS(A$12:A122)-1) -> 110 | B122: 859.1544121 | C122: 746.4448774 | D122: 112.7095347 | E122: 91757.42922
A123: =IF(ROWS(A$12:A123)-1>A$9*C$9,"",ROWS(A$12:A123)-1) -> 111 | B123: 859.1544121 | C123: 745.5291124 | D123: 113.6252996 | E123: 91643.80392
A124: =IF(ROWS(A$12:A124)-1>A$9*C$9,"",ROWS(A$12:A124)-1) -> 112 | B124: 859.1544121 | C124: 744.6059069 | D124: 114.5485052 | E124: 91529.25542
A125: =IF(ROWS(A$12:A125)-1>A$9*C$9,"",ROWS(A$12:A125)-1) -> 113 | B125: 859.1544121 | C125: 743.6752003 | D125: 115.4792118 | E125: 91413.77621
A126: =IF(ROWS(A$12:A126)-1>A$9*C$9,"",ROWS(A$12:A126)-1) -> 114 | B126: 859.1544121 | C126: 742.7369317 | D126: 116.4174804 | E126: 91297.35873
A127: =IF(ROWS(A$12:A127)-1>A$9*C$9,"",ROWS(A$12:A127)-1) -> 115 | B127: 859.1544121 | C127: 741.7910396 | D127: 117.3633724 | E127: 91179.99535
A128: =IF(ROWS(A$12:A128)-1>A$9*C$9,"",ROWS(A$12:A128)-1) -> 116 | B128: 859.1544121 | C128: 740.8374622 | D128: 118.3169498 | E128: 91061.6784
A129: =IF(ROWS(A$12:A129)-1>A$9*C$9,"",ROWS(A$12:A129)-1) -> 117 | B129: 859.1544121 | C129: 739.876137 | D129: 119.278275 | E129: 90942.40013
A130: =IF(ROWS(A$12:A130)-1>A$9*C$9,"",ROWS(A$12:A130)-1) -> 118 | B130: 859.1544121 | C130: 738.907001 | D130: 120.247411 | E130: 90822.15272
A131: =IF(ROWS(A$12:A131)-1>A$9*C$9,"",ROWS(A$12:A131)-1) -> 119 | B131: 859.1544121 | C131: 737.9299908 | D131: 121.2244212 | E131: 90700.9283
A132: =IF(ROWS(A$12:A132)-1>A$9*C$9,"",ROWS(A$12:A132)-1) -> 120 | B132: 859.1544121 | C132: 736.9450424 | D132: 122.2093696 | E132: 90578.71893
A133: =IF(ROWS(A$12:A133)-1>A$9*C$9,"",ROWS(A$12:A133)-1) -> 121 | B133: 859.1544121 | C133: 735.9520913 | D133: 123.2023208 | E133: 90455.51661
A134: =IF(ROWS(A$12:A134)-1>A$9*C$9,"",ROWS(A$12:A134)-1) -> 122 | B134: 859.1544121 | C134: 734.9510724 | D134: 124.2033396 | E134: 90331.31327
A135: =IF(ROWS(A$12:A135)-1>A$9*C$9,"",ROWS(A$12:A135)-1) -> 123 | B135: 859.1544121 | C135: 733.9419203 | D135: 125.2124918 | E135: 90206.10077
A136: =IF(ROWS(A$12:A136)-1>A$9*C$9,"",ROWS(A$12:A136)-1) -> 124 | B136: 859.1544121 | C136: 732.9245688 | D136: 126.2298433 | E136: 90079.87093
A137: =IF(ROWS(A$12:A137)-1>A$9*C$9,"",ROWS(A$12:A137)-1) -> 125 | B137: 859.1544121 | C137: 731.8989513 | D137: 127.2554607 | E137: 89952.61547
A138: =IF(ROWS(A$12:A138)-1>A$9*C$9,"",ROWS(A$12:A138)-1) -> 126 | B138: 859.1544121 | C138: 730.8650007 | D138: 128.2894114 | E138: 89824.32606
A139: =IF(ROWS(A$12:A139)-1>A$9*C$9,"",ROWS(A$12:A139)-1) -> 127 | B139: 859.1544121 | C139: 729.8226492 | D139: 129.3317628 | E139: 89694.9943
A140: =IF(ROWS(A$12:A140)-1>A$9*C$9,"",ROWS(A$12:A140)-1) -> 128 | B140: 859.1544121 | C140: 728.7718287 | D140: 130.3825834 | E140: 89564.61171
A141: =IF(ROWS(A$12:A141)-1>A$9*C$9,"",ROWS(A$12:A141)-1) -> 129 | B141: 859.1544121 | C141: 727.7124702 | D141: 131.4419419 | E141: 89433.16977
A142: =IF(ROWS(A$12:A142)-1>A$9*C$9,"",ROWS(A$12:A142)-1) -> 130 | B142: =IF(A142="","",-PMT(E$9,D$9,E$12)) -> 859.1544121 | C142: =IF(A142="","",E141*E$9) -> 726.6445044 | D142: =IF(A142="","",B142-C142) -> 132.5099077 | E142: =IF(A142="","",E141-D142) -> 89300.65986
A143: =IF(ROWS(A$12:A143)-1>A$9*C$9,"",ROWS(A$12:A143)-1) -> 131 | B143: 859.1544121 | C143: 725.5678614 | D143: 133.5865507 | E143: 89167.07331
A144: =IF(ROWS(A$12:A144)-1>A$9*C$9,"",ROWS(A$12:A144)-1) -> 132 | B144: 859.1544121 | C144: 724.4824707 | D144: 134.6719414 | E144: 89032.40137
A145: =IF(ROWS(A$12:A145)-1>A$9*C$9,"",ROWS(A$12:A145)-1) -> 133 | B145: 859.1544121 | C145: 723.3882611 | D145: 135.7661509 | E145: 88896.63522
A146: =IF(ROWS(A$12:A146)-1>A$9*C$9,"",ROWS(A$12:A146)-1) -> 134 | B146: 859.1544121 | C146: 722.2851612 | D146: 136.8692509 | E146: 88759.76597
A147: =IF(ROWS(A$12:A147)-1>A$9*C$9,"",ROWS(A$12:A147)-1) -> 135 | B147: 859.1544121 | C147: 721.1730985 | D147: 137.9813136 | E147: 88621.78466
A148: =IF(ROWS(A$12:A148)-1>A$9*C$9,"",ROWS(A$12:A148)-1) -> 136 | B148: 859.1544121 | C148: 720.0520003 | D148: 139.1024117 | E148: 88482.68224
A149: =IF(ROWS(A$12:A149)-1>A$9*C$9,"",ROWS(A$12:A149)-1) -> 137 | B149: 859.1544121 | C149: 718.9217932 | D149: 140.2326188 | E149: 88342.44963
A150: =IF(ROWS(A$12:A150)-1>A$9*C$9,"",ROWS(A$12:A150)-1) -> 138 | B150: 859.1544121 | C150: 717.7824032 | D150: 141.3720088 | E150: 88201.07762
A151: =IF(ROWS(A$12:A151)-1>A$9*C$9,"",ROWS(A$12:A151)-1) -> 139 | B151: 859.1544121 | C151: 716.6337556 | D151: 142.5206564 | E151: 88058.55696
A152: =IF(ROWS(A$12:A152)-1>A$9*C$9,"",ROWS(A$12:A152)-1) -> 140 | B152: 859.1544121 | C152: 715.4757753 | D152: 143.6786368 | E152: 87914.87832
A153: =IF(ROWS(A$12:A153)-1>A$9*C$9,"",ROWS(A$12:A153)-1) -> 141 | B153: 859.1544121 | C153: 714.3083864 | D153: 144.8460257 | E153: 87770.0323
A154: =IF(ROWS(A$12:A154)-1>A$9*C$9,"",ROWS(A$12:A154)-1) -> 142 | B154: 859.1544121 | C154: 713.1315124 | D154: 146.0228996 | E154: 87624.0094
A155: =IF(ROWS(A$12:A155)-1>A$9*C$9,"",ROWS(A$12:A155)-1) -> 143 | B155: 859.1544121 | C155: 711.9450764 | D155: 147.2093357 | E155: 87476.80006
A156: =IF(ROWS(A$12:A156)-1>A$9*C$9,"",ROWS(A$12:A156)-1) -> 144 | B156: 859.1544121 | C156: 710.7490005 | D156: 148.4054115 | E156: 87328.39465
A157: =IF(ROWS(A$12:A157)-1>A$9*C$9,"",ROWS(A$12:A157)-1) -> 145 | B157: 859.1544121 | C157: 709.5432065 | D157: 149.6112055 | E157: 87178.78345
A158: =IF(ROWS(A$12:A158)-1>A$9*C$9,"",ROWS(A$12:A158)-1) -> 146 | B158: 859.1544121 | C158: 708.3276155 | D158: 150.8267966 | E158: 87027.95665
A159: =IF(ROWS(A$12:A159)-1>A$9*C$9,"",ROWS(A$12:A159)-1) -> 147 | B159: 859.1544121 | C159: 707.1021478 | D159: 152.0522643 | E159: 86875.90438
A160: =IF(ROWS(A$12:A160)-1>A$9*C$9,"",ROWS(A$12:A160)-1) -> 148 | B160: 859.1544121 | C160: 705.8667231 | D160: 153.2876889 | E160: 86722.6167
A161: =IF(ROWS(A$12:A161)-1>A$9*C$9,"",ROWS(A$12:A161)-1) -> 149 | B161: 859.1544121 | C161: 704.6212607 | D161: 154.5331514 | E161: 86568.08354
A162: =IF(ROWS(A$12:A162)-1>A$9*C$9,"",ROWS(A$12:A162)-1) -> 150 | B162: 859.1544121 | C162: 703.3656788 | D162: 155.7887333 | E162: 86412.29481
A163: =IF(ROWS(A$12:A163)-1>A$9*C$9,"",ROWS(A$12:A163)-1) -> 151 | B163: 859.1544121 | C163: 702.0998953 | D163: 157.0545167 | E163: 86255.24029
A164: =IF(ROWS(A$12:A164)-1>A$9*C$9,"",ROWS(A$12:A164)-1) -> 152 | B164: 859.1544121 | C164: 700.8238274 | D164: 158.3305847 | E164: 86096.90971
A165: =IF(ROWS(A$12:A165)-1>A$9*C$9,"",ROWS(A$12:A165)-1) -> 153 | B165: 859.1544121 | C165: 699.5373914 | D165: 159.6170207 | E165: 85937.29269
A166: =IF(ROWS(A$12:A166)-1>A$9*C$9,"",ROWS(A$12:A166)-1) -> 154 | B166: 859.1544121 | C166: 698.2405031 | D166: 160.913909 | E166: 85776.37878
A167: =IF(ROWS(A$12:A167)-1>A$9*C$9,"",ROWS(A$12:A167)-1) -> 155 | B167: 859.1544121 | C167: 696.9330776 | D167: 162.2213345 | E167: 85614.15745
A168: =IF(ROWS(A$12:A168)-1>A$9*C$9,"",ROWS(A$12:A168)-1) -> 156 | B168: 859.1544121 | C168: 695.6150292 | D168: 163.5393828 | E168: 85450.61806
A169: =IF(ROWS(A$12:A169)-1>A$9*C$9,"",ROWS(A$12:A169)-1) -> 157 | B169: 859.1544121 | C169: 694.2862718 | D169: 164.8681403 | E169: 85285.74992
A170: =IF(ROWS(A$12:A170)-1>A$9*C$9,"",ROWS(A$12:A170)-1) -> 158 | B170: 859.1544121 | C170: 692.9467181 | D170: 166.2076939 | E170: 85119.54223
A171: =IF(ROWS(A$12:A171)-1>A$9*C$9,"",ROWS(A$12:A171)-1) -> 159 | B171: 859.1544121 | C171: 691.5962806 | D171: 167.5581315 | E171: 84951.9841
A172: =IF(ROWS(A$12:A172)-1>A$9*C$9,"",ROWS(A$12:A172)-1) -> 160 | B172: 859.1544121 | C172: 690.2348708 | D172: 168.9195413 | E172: 84783.06456
A173: =IF(ROWS(A$12:A173)-1>A$9*C$9,"",ROWS(A$12:A173)-1) -> 161 | B173: 859.1544121 | C173: 688.8623995 | D173: 170.2920125 | E173: 84612.77254
A174: =IF(ROWS(A$12:A174)-1>A$9*C$9,"",ROWS(A$12:A174)-1) -> 162 | B174: 859.1544121 | C174: 687.4787769 | D174: 171.6756351 | E174: 84441.09691
A175: =IF(ROWS(A$12:A175)-1>A$9*C$9,"",ROWS(A$12:A175)-1) -> 163 | B175: 859.1544121 | C175: 686.0839124 | D175: 173.0704997 | E175: 84268.02641
A176: =IF(ROWS(A$12:A176)-1>A$9*C$9,"",ROWS(A$12:A176)-1) -> 164 | B176: 859.1544121 | C176: 684.6777146 | D176: 174.4766975 | E176: 84093.54971
A177: =IF(ROWS(A$12:A177)-1>A$9*C$9,"",ROWS(A$12:A177)-1) -> 165 | B177: 859.1544121 | C177: 683.2600914 | D177: 175.8943207 | E177: 83917.65539
A178: =IF(ROWS(A$12:A178)-1>A$9*C$9,"",ROWS(A$12:A178)-1) -> 166 | B178: 859.1544121 | C178: 681.83095 | D178: 177.323462 | E178: 83740.33193
A179: =IF(ROWS(A$12:A179)-1>A$9*C$9,"",ROWS(A$12:A179)-1) -> 167 | B179: 859.1544121 | C179: 680.3901969 | D179: 178.7642151 | E179: 83561.56771
A180: =IF(ROWS(A$12:A180)-1>A$9*C$9,"",ROWS(A$12:A180)-1) -> 168 | B180: 859.1544121 | C180: 678.9377377 | D180: 180.2166744 | E180: 83381.35104
A181: =IF(ROWS(A$12:A181)-1>A$9*C$9,"",ROWS(A$12:A181)-1) -> 169 | B181: 859.1544121 | C181: 677.4734772 | D181: 181.6809349 | E181: 83199.6701
A182: =IF(ROWS(A$12:A182)-1>A$9*C$9,"",ROWS(A$12:A182)-1) -> 170 | B182: 859.1544121 | C182: 675.9973196 | D182: 183.1570925 | E182: 83016.51301
A183: =IF(ROWS(A$12:A183)-1>A$9*C$9,"",ROWS(A$12:A183)-1) -> 171 | B183: 859.1544121 | C183: 674.5091682 | D183: 184.6452438 | E183: 82831.86777
A184: =IF(ROWS(A$12:A184)-1>A$9*C$9,"",ROWS(A$12:A184)-1) -> 172 | B184: 859.1544121 | C184: 673.0089256 | D184: 186.1454864 | E184: 82645.72228
A185: =IF(ROWS(A$12:A185)-1>A$9*C$9,"",ROWS(A$12:A185)-1) -> 173 | B185: 859.1544121 | C185: 671.4964935 | D185: 187.6579185 | E185: 82458.06436
A186: =IF(ROWS(A$12:A186)-1>A$9*C$9,"",ROWS(A$12:A186)-1) -> 174 | B186: 859.1544121 | C186: 669.9717729 | D186: 189.1826391 | E186: 82268.88172
A187: =IF(ROWS(A$12:A187)-1>A$9*C$9,"",ROWS(A$12:A187)-1) -> 175 | B187: 859.1544121 | C187: 668.434664 | D187: 190.7197481 | E187: 82078.16198
A188: =IF(ROWS(A$12:A188)-1>A$9*C$9,"",ROWS(A$12:A188)-1) -> 176 | B188: 859.1544121 | C188: 666.8850661 | D188: 192.269346 | E188: 81885.89263
A189: =IF(ROWS(A$12:A189)-1>A$9*C$9,"",ROWS(A$12:A189)-1) -> 177 | B189: 859.1544121 | C189: 665.3228776 | D189: 193.8315344 | E189: 81692.0611
A190: =IF(ROWS(A$12:A190)-1>A$9*C$9,"",ROWS(A$12:A190)-1) -> 178 | B190: 859.1544121 | C190: 663.7479964 | D190: 195.4064157 | E190: 81496.65468
A191: =IF(ROWS(A$12:A191)-1>A$9*C$9,"",ROWS(A$12:A191)-1) -> 179 | B191: 859.1544121 | C191: 662.1603193 | D191: 196.9940928 | E191: 81299.66059
A192: =IF(ROWS(A$12:A192)-1>A$9*C$9,"",ROWS(A$12:A192)-1) -> 180 | B192: 859.1544121 | C192: 660.5597423 | D192: 198.5946698 | E192: 81101.06592
A193: =IF(ROWS(A$12:A193)-1>A$9*C$9,"",ROWS(A$12:A193)-1) -> 181 | B193: 859.1544121 | C193: 658.9461606 | D193: 200.2082515 | E193: 80900.85767
A194: =IF(ROWS(A$12:A194)-1>A$9*C$9,"",ROWS(A$12:A194)-1) -> 182 | B194: 859.1544121 | C194: 657.3194685 | D194: 201.8349435 | E194: 80699.02272
A195: =IF(ROWS(A$12:A195)-1>A$9*C$9,"",ROWS(A$12:A195)-1) -> 183 | B195: 859.1544121 | C195: 655.6795596 | D195: 203.4748524 | E195: 80495.54787
A196: =IF(ROWS(A$12:A196)-1>A$9*C$9,"",ROWS(A$12:A196)-1) -> 184 | B196: 859.1544121 | C196: 654.0263264 | D196: 205.1280856 | E196: 80290.41978
A197: =IF(ROWS(A$12:A197)-1>A$9*C$9,"",ROWS(A$12:A197)-1) -> 185 | B197: 859.1544121 | C197: 652.3596607 | D197: 206.7947513 | E197: 80083.62503
A198: =IF(ROWS(A$12:A198)-1>A$9*C$9,"",ROWS(A$12:A198)-1) -> 186 | B198: 859.1544121 | C198: 650.6794534 | D198: 208.4749587 | E198: 79875.15007
A199: =IF(ROWS(A$12:A199)-1>A$9*C$9,"",ROWS(A$12:A199)-1) -> 187 | B199: 859.1544121 | C199: 648.9855943 | D199: 210.1688177 | E199: 79664.98126
A200: =IF(ROWS(A$12:A200)-1>A$9*C$9,"",ROWS(A$12:A200)-1) -> 188 | B200: 859.1544121 | C200: 647.2779727 | D200: 211.8764394 | E200: 79453.10482
A201: =IF(ROWS(A$12:A201)-1>A$9*C$9,"",ROWS(A$12:A201)-1) -> 189 | B201: 859.1544121 | C201: 645.5564766 | D201: 213.5979354 | E201: 79239.50688
A202: =IF(ROWS(A$12:A202)-1>A$9*C$9,"",ROWS(A$12:A202)-1) -> 190 | B202: 859.1544121 | C202: 643.8209934 | D202: 215.3334186 | E202: 79024.17346
... 170 more rows

Sheet 515
A1: PMT means periodic payment (same amount each period)
A2: PMT function calculates the period payment for a loan (For the Borrower or the Lender). The Amount of each PMT must be the same and the time between each PMT must be the same.
A3: Cash Flow matters in Finance. Cash going out of the wallet is negative. Cash coming into the wallet is positive.
A4: For the borrow the PV is positive, the PMT is negative, and the FV is negative. For the Lender the PV is negative, the PMT is positive, and the FV is positive.
A5: Be consistent with your unit of time! If you are calculating monthly payment, you need monthly interest rate and total number of months! (The period can be monthly, quarterly, yearly or any other length).
A6: =PMT(rate = period rate, nper = total number of periods, pv means amount invested or lent out today, fv means amount received after all the periods have elapsed or amount paid after all the periods have elapsed, type refers to the PMT: PMT at end of period = 0, PMT at beginning of period = 1)
A7: Custom Number Format has 4 sections separated by semi-colons : positive;negative;zero;text
A9: Years | B9: Rate | C9: Periods per year | D9: Total Periods | E9: Period Rate
A10: 30 | B10: 0.0975 | C10: 12 | D10: =C10*A10 -> 360 | E10: =B10/C10 -> 0.008125 | I10: 5 | J10: -1 | K10: 0 | L10: tt
A12: Period | B12: PMT | C12: Interest | D12: Principal Paid | E12: Balance | G12: Extra Paymnet
E13: 100000

Sheet 515an
A1: PMT means periodic payment (same amount each period)
A2: PMT function calculates the period payment for a loan (For the Borrower or the Lender). The Amount of each PMT must be the same and the time between each PMT must be the same.
A3: Cash Flow matters in Finance. Cash going out of the wallet is negative. Cash coming into the wallet is positive.
A4: For the borrow the PV is positive, the PMT is negative, and the FV is negative. For the Lender the PV is negative, the PMT is positive, and the FV is positive.
A5: Be consistent with your unit of time! If you are calculating monthly payment, you need monthly interest rate and total number of months! (The period can be monthly, quarterly, yearly or any other length).
A6: =PMT(rate = period rate, nper = total number of periods, pv means amount invested or lent out today, fv means amount received after all the periods have elapsed or amount paid after all the periods have elapsed, type refers to the PMT: PMT at end of period = 0, PMT at beginning of period = 1)
A7: Custom Number Format has 4 sections separated by semi-colons : positive;negative;zero;text
A9: Years | B9: Rate | C9: Periods per year | D9: Total Periods | E9: Period Rate
A10: 30 | B10: 0.0975 | C10: 12 | D10: =C10*A10 -> 360 | E10: =B10/C10 -> 0.008125 | I10: 5 | J10: -1 | K10: 0 | L10: tt
A12: Period | B12: PMT | C12: Interest | D12: Principal Paid | E12: Balance | G12: Extra Paymnet
A13: 0 | E13: 100000
A14: 1 | B14: =IF(E13<-PMT(E$10,D$10,E$13),E13*(1+E$10),-PMT(E$10,D$10,E$13)) -> 859.1544121 | C14: =E13*E$10 -> 812.5 | D14: =B14-C14+G14 -> 46.65441206 | E14: =E13-D14 -> 99953.34559
A15: 2 | B15: 859.1544121 | C15: 812.1209329 | D15: 25047.03348 | E15: 74906.31211 | G15: 25000
A16: 3 | B16: 859.1544121 | C16: 608.6137859 | D16: 250.5406262 | E16: 74655.77148
A17: 4 | B17: 859.1544121 | C17: 606.5781433 | D17: 252.5762688 | E17: 74403.19521
A18: 5 | B18: 859.1544121 | C18: 604.5259611 | D18: 254.6284509 | E18: 74148.56676
A19: 6 | B19: 859.1544121 | C19: 602.4571049 | D19: 256.6973071 | E19: 73891.86946
A20: 7 | B20: 859.1544121 | C20: 600.3714393 | D20: 258.7829727 | E20: 73633.08648
A21: 8 | B21: 859.1544121 | C21: 598.2688277 | D21: 260.8855844 | E21: 73372.2009
A22: 9 | B22: 859.1544121 | C22: 596.1491323 | D22: 263.0052798 | E22: 73109.19562
A23: 10 | B23: 859.1544121 | C23: 594.0122144 | D23: 265.1421977 | E23: 72844.05342
A24: 11 | B24: 859.1544121 | C24: 591.857934 | D24: 267.296478 | E24: 72576.75694
A25: 12 | B25: 859.1544121 | C25: 589.6861502 | D25: 269.4682619 | E25: 72307.28868
A26: 13 | B26: 859.1544121 | C26: 587.4967205 | D26: 271.6576915 | E26: 72035.63099
A27: 14 | B27: 859.1544121 | C27: 585.2895018 | D27: 273.8649103 | E27: 71761.76608
A28: 15 | B28: 859.1544121 | C28: 583.0643494 | D28: 276.0900627 | E28: 71485.67602
A29: 16 | B29: 859.1544121 | C29: 580.8211176 | D29: 278.3332944 | E29: 71207.34272
A30: 17 | B30: 859.1544121 | C30: 578.5596596 | D30: 280.5947524 | E30: 70926.74797
A31: 18 | B31: 859.1544121 | C31: 576.2798273 | D31: 282.8745848 | E31: 70643.87339
A32: 19 | B32: 859.1544121 | C32: 573.9814713 | D32: 285.1729408 | E32: 70358.70044
A33: 20 | B33: 859.1544121 | C33: 571.6644411 | D33: 287.4899709 | E33: 70071.21047
A34: 21 | B34: 859.1544121 | C34: 569.3285851 | D34: 289.825827 | E34: 69781.38465
A35: 22 | B35: 859.1544121 | C35: 566.9737503 | D35: 292.1806618 | E35: 69489.20398
A36: 23 | B36: 859.1544121 | C36: 564.5997824 | D36: 294.5546297 | E36: 69194.64936
A37: 24 | B37: 859.1544121 | C37: 562.206526 | D37: 296.947886 | E37: 68897.70147
A38: 25 | B38: 859.1544121 | C38: 559.7938244 | D38: 299.3605876 | E38: 68598.34088
A39: 26 | B39: 859.1544121 | C39: 557.3615197 | D39: 301.7928924 | E39: 68296.54799
A40: 27 | B40: 859.1544121 | C40: 554.9094524 | D40: 304.2449596 | E40: 67992.30303
A41: 28 | B41: 859.1544121 | C41: 552.4374621 | D41: 306.7169499 | E41: 67685.58608
A42: 29 | B42: 859.1544121 | C42: 549.9453869 | D42: 309.2090252 | E42: 67376.37705
A43: 30 | B43: 859.1544121 | C43: 547.4330636 | D43: 311.7213485 | E43: 67064.65571
A44: 31 | B44: 859.1544121 | C44: 544.9003276 | D44: 314.2540844 | E44: 66750.40162
A45: 32 | B45: 859.1544121 | C45: 542.3470132 | D45: 316.8073989 | E45: 66433.59422
A46: 33 | B46: 859.1544121 | C46: 539.7729531 | D46: 319.381459 | E46: 66114.21276
A47: 34 | B47: 859.1544121 | C47: 537.1779787 | D47: 321.9764334 | E47: 65792.23633
A48: 35 | B48: 859.1544121 | C48: 534.5619202 | D48: 324.5924919 | E48: 65467.64384
A49: 36 | B49: 859.1544121 | C49: 531.9246062 | D49: 327.2298059 | E49: 65140.41403
A50: 37 | B50: 859.1544121 | C50: 529.265864 | D50: 329.888548 | E50: 64810.52548
A51: 38 | B51: 859.1544121 | C51: 526.5855196 | D51: 332.5688925 | E51: 64477.95659
A52: 39 | B52: 859.1544121 | C52: 523.8833973 | D52: 335.2710148 | E52: 64142.68558
A53: 40 | B53: 859.1544121 | C53: 521.1593203 | D53: 337.9950917 | E53: 63804.69049
A54: 41 | B54: 859.1544121 | C54: 518.4131102 | D54: 340.7413019 | E54: 63463.94918
A55: 42 | B55: 859.1544121 | C55: 515.6445871 | D55: 343.5098249 | E55: 63120.43936
A56: 43 | B56: 859.1544121 | C56: 512.8535698 | D56: 346.3008423 | E56: 62774.13852
A57: 44 | B57: 859.1544121 | C57: 510.0398754 | D57: 349.1145366 | E57: 62425.02398
A58: 45 | B58: 859.1544121 | C58: 507.2033198 | D58: 351.9510922 | E58: 62073.07289
A59: 46 | B59: 859.1544121 | C59: 504.3437172 | D59: 354.8106948 | E59: 61718.26219
A60: 47 | B60: 859.1544121 | C60: 501.4608803 | D60: 357.6935317 | E60: 61360.56866
A61: 48 | B61: 859.1544121 | C61: 498.5546204 | D61: 360.5997917 | E61: 60999.96887
A62: 49 | B62: 859.1544121 | C62: 495.6247471 | D62: 363.529665 | E62: 60636.4392
A63: 50 | B63: 859.1544121 | C63: 492.6710685 | D63: 366.4833435 | E63: 60269.95586
A64: 51 | B64: 859.1544121 | C64: 489.6933914 | D64: 369.4610207 | E64: 59900.49484
A65: 52 | B65: 859.1544121 | C65: 486.6915206 | D65: 372.4628915 | E65: 59528.03195
A66: 53 | B66: 859.1544121 | C66: 483.6652596 | D66: 375.4891525 | E66: 59152.5428
A67: 54 | B67: 859.1544121 | C67: 480.6144102 | D67: 378.5400018 | E67: 58774.00279
A68: 55 | B68: 859.1544121 | C68: 477.5387727 | D68: 381.6156394 | E68: 58392.38715
A69: 56 | B69: 859.1544121 | C69: 474.4381456 | D69: 384.7162664 | E69: 58007.67089
A70: 57 | B70: 859.1544121 | C70: 471.312326 | D70: 387.8420861 | E70: 57619.8288
A71: 58 | B71: 859.1544121 | C71: 468.161109 | D71: 390.993303 | E71: 57228.8355
A72: 59 | B72: 859.1544121 | C72: 464.9842884 | D72: 394.1701236 | E72: 56834.66538
A73: 60 | B73: 859.1544121 | C73: 461.7816562 | D73: 397.3727559 | E73: 56437.29262
A74: 61 | B74: 859.1544121 | C74: 458.5530025 | D74: 400.6014095 | E74: 56036.69121
A75: 62 | B75: 859.1544121 | C75: 455.2981161 | D75: 403.856296 | E75: 55632.83491
A76: 63 | B76: 859.1544121 | C76: 452.0167837 | D76: 407.1376284 | E76: 55225.69729
A77: 64 | B77: 859.1544121 | C77: 448.7087904 | D77: 410.4456216 | E77: 54815.25166
A78: 65 | B78: =IF(E77<-PMT(E$10,D$10,E$13),E77*(1+E$10),-PMT(E$10,D$10,E$13)) -> 859.1544121 | C78: =E77*E$10 -> 445.3739198 | D78: =B78-C78+G78 -> 413.7804923 | E78: =E77-D78 -> 54401.47117
A79: 66 | B79: 859.1544121 | C79: 442.0119533 | D79: 417.1424588 | E79: 53984.32871
A80: 67 | B80: 859.1544121 | C80: 438.6226708 | D80: 420.5317413 | E80: 53563.79697
A81: 68 | B81: 859.1544121 | C81: 435.2058504 | D81: 423.9485617 | E81: 53139.84841
A82: 69 | B82: 859.1544121 | C82: 431.7612683 | D82: 427.3931437 | E82: 52712.45527
A83: 70 | B83: 859.1544121 | C83: 428.288699 | D83: 430.865713 | E83: 52281.58955
A84: 71 | B84: =IF(E83<-PMT(E$10,D$10,E$13),E83*(1+E$10),-PMT(E$10,D$10,E$13)) -> 859.1544121 | C84: =E83*E$10 -> 424.7879151 | D84: =B84-C84+G84 -> 434.3664969 | E84: =E83-D84 -> 51847.22306
A85: 72 | B85: =IF(E84<-PMT(E$10,D$10,E$13),E84*(1+E$10),-PMT(E$10,D$10,E$13)) -> 859.1544121 | C85: =E84*E$10 -> 421.2586873 | D85: =B85-C85+G85 -> 437.8957247 | E85: =E84-D85 -> 51409.32733
A86: 73 | B86: 859.1544121 | C86: 417.7007846 | D86: 441.4536275 | E86: 50967.8737
A87: 74 | B87: 859.1544121 | C87: 414.1139738 | D87: 445.0404382 | E87: 50522.83327
A88: 75 | B88: 859.1544121 | C88: 410.4980203 | D88: 448.6563918 | E88: 50074.17687
A89: 76 | B89: 859.1544121 | C89: 406.8526871 | D89: 452.301725 | E89: 49621.87515
A90: 77 | B90: 859.1544121 | C90: 403.1777356 | D90: 455.9766765 | E90: 49165.89847
A91: 78 | B91: 859.1544121 | C91: 399.4729251 | D91: 459.681487 | E91: 48706.21699
A92: 79 | B92: 859.1544121 | C92: 395.738013 | D92: 463.416399 | E92: 48242.80059
A93: 80 | B93: 859.1544121 | C93: 391.9727548 | D93: 467.1816573 | E93: 47775.61893
A94: 81 | B94: 859.1544121 | C94: 388.1769038 | D94: 470.9775083 | E94: 47304.64142
A95: 82 | B95: 859.1544121 | C95: 384.3502115 | D95: 474.8042005 | E95: 46829.83722
A96: 83 | B96: 859.1544121 | C96: 380.4924274 | D96: 478.6619846 | E96: 46351.17524
A97: 84 | B97: 859.1544121 | C97: 376.6032988 | D97: 482.5511133 | E97: 45868.62412
A98: 85 | B98: 859.1544121 | C98: 372.682571 | D98: 486.4718411 | E98: 45382.15228
A99: 86 | B99: 859.1544121 | C99: 368.7299873 | D99: 490.4244248 | E99: 44891.72786
A100: 87 | B100: 859.1544121 | C100: 364.7452888 | D100: 494.4091232 | E100: 44397.31873
A101: 88 | B101: 859.1544121 | C101: 360.7282147 | D101: 498.4261973 | E101: 43898.89254
A102: 89 | B102: 859.1544121 | C102: 356.6785019 | D102: 502.4759102 | E102: 43396.41663
A103: 90 | B103: 859.1544121 | C103: 352.5958851 | D103: 506.558527 | E103: 42889.8581
A104: 91 | B104: 859.1544121 | C104: 348.4800971 | D104: 510.674315 | E104: 42379.18378
A105: 92 | B105: 859.1544121 | C105: 344.3308682 | D105: 514.8235438 | E105: 41864.36024
A106: 93 | B106: 859.1544121 | C106: 340.147927 | D106: 519.0064851 | E106: 41345.35376
A107: 94 | B107: 859.1544121 | C107: 335.9309993 | D107: 523.2234128 | E107: 40822.13034
A108: 95 | B108: 859.1544121 | C108: 331.679809 | D108: 527.474603 | E108: 40294.65574
A109: 96 | B109: 859.1544121 | C109: 327.3940779 | D109: 531.7603342 | E109: 39762.89541
A110: 97 | B110: 859.1544121 | C110: 323.0735252 | D110: 536.0808869 | E110: 39226.81452
A111: 98 | B111: 859.1544121 | C111: 318.717868 | D111: 540.4365441 | E111: 38686.37797
A112: 99 | B112: 859.1544121 | C112: 314.326821 | D112: 544.827591 | E112: 38141.55038
A113: 100 | B113: 859.1544121 | C113: 309.9000969 | D113: 549.2543152 | E113: 37592.29607
A114: 101 | B114: 859.1544121 | C114: 305.4374056 | D114: 553.7170065 | E114: 37038.57906
A115: 102 | B115: 859.1544121 | C115: 300.9384549 | D115: 558.2159572 | E115: 36480.3631
A116: 103 | B116: 859.1544121 | C116: 296.4029502 | D116: 562.7514618 | E116: 35917.61164
A117: 104 | B117: 859.1544121 | C117: 291.8305946 | D117: 567.3238175 | E117: 35350.28783
A118: 105 | B118: 859.1544121 | C118: 287.2210886 | D118: 571.9333235 | E118: 34778.3545
A119: 106 | B119: 859.1544121 | C119: 282.5741303 | D119: 576.5802817 | E119: 34201.77422
A120: 107 | B120: 859.1544121 | C120: 277.8894155 | D120: 581.2649965 | E120: 33620.50922
A121: 108 | B121: 859.1544121 | C121: 273.1666374 | D121: 585.9877746 | E121: 33034.52145
A122: 109 | B122: 859.1544121 | C122: 268.4054868 | D122: 590.7489253 | E122: 32443.77252
A123: 110 | B123: 859.1544121 | C123: 263.6056518 | D123: 595.5487603 | E123: 31848.22376
A124: 111 | B124: 859.1544121 | C124: 258.7668181 | D124: 600.387594 | E124: 31247.83617
A125: 112 | B125: 859.1544121 | C125: 253.8886689 | D125: 605.2657432 | E125: 30642.57043
A126: 113 | B126: 859.1544121 | C126: 248.9708847 | D126: 610.1835273 | E126: 30032.3869
A127: 114 | B127: 859.1544121 | C127: 244.0131436 | D127: 615.1412685 | E127: 29417.24563
A128: 115 | B128: 859.1544121 | C128: 239.0151207 | D128: 620.1392913 | E128: 28797.10634
A129: 116 | B129: 859.1544121 | C129: 233.976489 | D129: 625.1779231 | E129: 28171.92842
A130: 117 | B130: 859.1544121 | C130: 228.8969184 | D130: 630.2574937 | E130: 27541.67092
A131: 118 | B131: 859.1544121 | C131: 223.7760762 | D131: 635.3783358 | E131: 26906.29259
A132: 119 | B132: 859.1544121 | C132: 218.6136273 | D132: 640.5407848 | E132: 26265.7518
A133: 120 | B133: 859.1544121 | C133: 213.4092334 | D133: 645.7451787 | E133: 25620.00662
A134: 121 | B134: 859.1544121 | C134: 208.1625538 | D134: 650.9918582 | E134: 24969.01476
A135: 122 | B135: 859.1544121 | C135: 202.873245 | D135: 656.2811671 | E135: 24312.7336
A136: 123 | B136: 859.1544121 | C136: 197.5409605 | D136: 661.6134516 | E136: 23651.12015
A137: 124 | B137: 859.1544121 | C137: 192.1653512 | D137: 666.9890609 | E137: 22984.13109
A138: 125 | B138: 859.1544121 | C138: 186.7460651 | D138: 672.408347 | E138: 22311.72274
A139: 126 | B139: 859.1544121 | C139: 181.2827472 | D139: 677.8716648 | E139: 21633.85107
A140: 127 | B140: 859.1544121 | C140: 175.77504 | D140: 683.3793721 | E140: 20950.4717
A141: 128 | B141: 859.1544121 | C141: 170.2225826 | D141: 688.9318295 | E141: 20261.53987
A142: 129 | B142: 859.1544121 | C142: 164.6250115 | D142: 694.5294006 | E142: 19567.01047
A143: 130 | B143: 859.1544121 | C143: 158.9819601 | D143: 700.172452 | E143: 18866.83802
A144: 131 | B144: 859.1544121 | C144: 153.2930589 | D144: 705.8613532 | E144: 18160.97667
A145: 132 | B145: 859.1544121 | C145: 147.5579354 | D145: 711.5964766 | E145: 17449.38019
A146: 133 | B146: 859.1544121 | C146: 141.776214 | D146: 717.378198 | E146: 16732.00199
A147: 134 | B147: 859.1544121 | C147: 135.9475162 | D147: 723.2068959 | E147: 16008.7951
A148: 135 | B148: 859.1544121 | C148: 130.0714601 | D148: 729.0829519 | E148: 15279.71214
A149: 136 | B149: =IF(E148<-PMT(E$10,D$10,E$13),E148*(1+E$10),-PMT(E$10,D$10,E$13)) -> 859.1544121 | C149: =E148*E$10 -> 124.1476612 | D149: =B149-C149+G149 -> 735.0067509 | E149: =E148-D149 -> 14544.70539
A150: 137 | B150: 859.1544121 | C150: 118.1757313 | D150: 740.9786807 | E150: 13803.72671
A151: 138 | B151: 859.1544121 | C151: 112.1552795 | D151: 746.9991325 | E151: 13056.72758
A152: 139 | B152: 859.1544121 | C152: 106.0859116 | D152: 753.0685005 | E152: 12303.65908
A153: 140 | B153: 859.1544121 | C153: 99.96723002 | D153: 759.187182 | E153: 11544.4719
A154: 141 | B154: 859.1544121 | C154: 93.79883416 | D154: 765.3555779 | E154: 10779.11632
A155: 142 | B155: 859.1544121 | C155: 87.58032009 | D155: 771.574092 | E155: 10007.54223
A156: 143 | B156: 859.1544121 | C156: 81.31128059 | D156: 777.8431315 | E156: 9229.699095
A157: 144 | B157: 859.1544121 | C157: 74.99130515 | D157: 784.1631069 | E157: 8445.535989
A158: 145 | B158: 859.1544121 | C158: 68.61997991 | D158: 790.5344322 | E158: 7655.001556
A159: 146 | B159: 859.1544121 | C159: 62.19688765 | D159: 796.9575244 | E159: 6858.044032
A160: 147 | B160: 859.1544121 | C160: 55.72160776 | D160: 803.4328043 | E160: 6054.611228
A161: 148 | B161: 859.1544121 | C161: 49.19371622 | D161: 809.9606958 | E161: 5244.650532
A162: 149 | B162: 859.1544121 | C162: 42.61278557 | D162: 816.5416265 | E162: 4428.108905
A163: 150 | B163: 859.1544121 | C163: 35.97838486 | D163: 823.1760272 | E163: 3604.932878
A164: 151 | B164: 859.1544121 | C164: 29.29007963 | D164: 829.8643324 | E164: 2775.068546
A165: 152 | B165: 859.1544121 | C165: 22.54743193 | D165: 836.6069801 | E165: 1938.461566
A166: 153 | B166: 859.1544121 | C166: 15.75000022 | D166: 843.4044118 | E166: 1095.057154
A167: 154 | B167: 859.1544121 | C167: 8.897339374 | D167: 850.2570727 | E167: 244.800081
A168: 155 | B168: 246.7890817 | C168: 1.989000658 | D168: 244.800081 | E168: 0
A169: 156 | B169: 0 | C169: 0 | D169: 0 | E169: 0
A170: 157 | B170: 0 | C170: 0 | D170: 0 | E170: 0
A171: 158 | B171: 0 | C171: 0 | D171: 0 | E171: 0
A172: 159 | B172: 0 | C172: 0 | D172: 0 | E172: 0
A173: 160 | B173: 0 | C173: 0 | D173: 0 | E173: 0
A174: 161 | B174: 0 | C174: 0 | D174: 0 | E174: 0
A175: 162 | B175: 0 | C175: 0 | D175: 0 | E175: 0
A176: 163 | B176: 0 | C176: 0 | D176: 0 | E176: 0
A177: 164 | B177: 0 | C177: 0 | D177: 0 | E177: 0
A178: 165 | B178: 0 | C178: 0 | D178: 0 | E178: 0
A179: 166 | B179: 0 | C179: 0 | D179: 0 | E179: 0
A180: 167 | B180: 0 | C180: 0 | D180: 0 | E180: 0
A181: 168 | B181: 0 | C181: 0 | D181: 0 | E181: 0
A182: 169 | B182: 0 | C182: 0 | D182: 0 | E182: 0
A183: 170 | B183: 0 | C183: 0 | D183: 0 | E183: 0
A184: 171 | B184: 0 | C184: 0 | D184: 0 | E184: 0
A185: 172 | B185: 0 | C185: 0 | D185: 0 | E185: 0
A186: 173 | B186: 0 | C186: 0 | D186: 0 | E186: 0
A187: 174 | B187: 0 | C187: 0 | D187: 0 | E187: 0
A188: 175 | B188: 0 | C188: 0 | D188: 0 | E188: 0
A189: 176 | B189: 0 | C189: 0 | D189: 0 | E189: 0
A190: 177 | B190: 0 | C190: 0 | D190: 0 | E190: 0
A191: 178 | B191: 0 | C191: 0 | D191: 0 | E191: 0
A192: 179 | B192: 0 | C192: 0 | D192: 0 | E192: 0
A193: 180 | B193: 0 | C193: 0 | D193: 0 | E193: 0
A194: 181 | B194: 0 | C194: 0 | D194: 0 | E194: 0
A195: 182 | B195: 0 | C195: 0 | D195: 0 | E195: 0
A196: 183 | B196: 0 | C196: 0 | D196: 0 | E196: 0
A197: 184 | B197: 0 | C197: 0 | D197: 0 | E197: 0
A198: 185 | B198: 0 | C198: 0 | D198: 0 | E198: 0
A199: 186 | B199: 0 | C199: 0 | D199: 0 | E199: 0
A200: 187 | B200: 0 | C200: 0 | D200: 0 | E200: 0
A201: 188 | B201: 0 | C201: 0 | D201: 0 | E201: 0
A202: 189 | B202: 0 | C202: 0 | D202: 0 | E202: 0
... 171 more rows

Sheet RATE
A1: =ROW()&")" -> 1) | B1: =RATE(nper = total number of periods, pmt means periodic payment, pv means amount invested or lent out today, fv means amount received after all the periods have elapsed or amount paid after all the periods have elapsed, type refers to the pmt: pmt at end of period = 0, pmt at beginning of period = 1)
A2: =ROW()&")" -> 2) | B2: Be consistent with your unit of time! If you are calculating monthly payment, you need monthly interest rate and total number of months! (The period can be monthly, quarterly, yearly or any other length).
A3: =ROW()&")" -> 3) | B3: Remember, RATE returns the period rate!!!!!!
A4: =ROW()&")" -> 4) | B4: Cash Flow matters in Finance. Cash going out of the wallet is negative. Cash coming into the wallet is positive.
A5: =ROW()&")" -> 5) | B5: For the borrow the PV is positive, the PMT is negative, and the FV is negative. For the Lender the PV is negative, the PMT is positive, and the FV is positive.
B7: If you pay points, then you do not get to use all the cash you borrowed. Therefore, the Rate is really based on the cash you receive, not the face value of the loan.
B8: Item | C8: House | D8: Annual Rate | E8: 0.05
B9: Price | C9: 200000 | D9: Monthly Rate | E9: =E8/E12 -> 0.004166666667
B10: Down | C10: 0 | D10: Years | E10: 15
B11: Loan | C11: =C9-C10 -> 200000 | D11: Months | E11: =E10*E12 -> 180
B12: Points | C12: 0.02 | D12: Periods Per Year | E12: 12
B13: PMT | C13: =ROUND(PMT(E9,E11,C11,E13),2) -> -1581.59 | D13: Type (0 = End, 1 = Begin) | E13: 0
D14: Adjusted Annual Rate | I14: =RATE(E11,C13,C11*(1-C12))*E12 -> 0.05308057633

Sheet RATE (an)
A1: =ROW()&")" -> 1) | B1: =RATE(nper = total number of periods, pmt means periodic payment, pv means amount invested or lent out today, fv means amount received after all the periods have elapsed or amount paid after all the periods have elapsed, type refers to the pmt: pmt at end of period = 0, pmt at beginning of period = 1)
A2: =ROW()&")" -> 2) | B2: Be consistent with your unit of time! If you are calculating monthly payment, you need monthly interest rate and total number of months! (The period can be monthly, quarterly, yearly or any other length).
A3: =ROW()&")" -> 3) | B3: Remember, RATE returns the period rate!!!!!!
A4: =ROW()&")" -> 4) | B4: Cash Flow matters in Finance. Cash going out of the wallet is negative. Cash coming into the wallet is positive.
A5: =ROW()&")" -> 5) | B5: For the borrow the PV is positive, the PMT is negative, and the FV is negative. For the Lender the PV is negative, the PMT is positive, and the FV is positive.
B7: If you pay points, then you do not get to use all the cash you borrowed. Therefore, the Rate is really based on the cash you receive, not the face value of the loan.
B8: Item | C8: House | D8: Annual Rate | E8: 0.05
B9: Price | C9: 200000 | D9: Monthly Rate | E9: =E8/E12 -> 0.004166666667
B10: Down | C10: 0 | D10: Years | E10: 15
B11: Loan | C11: =C9-C10 -> 200000 | D11: Months | E11: =E10*E12 -> 180
B12: Points | C12: 0.02 | D12: Periods Per Year | E12: 12
B13: PMT | C13: =ROUND(PMT(E9,E11,C11,E13),2) -> -1581.59 | D13: Type (0 = End, 1 = Begin) | E13: 0
D14: Adjusted Annual Rate | E14: =E12*RATE(E11,C13,C11*(1-C12)) -> 0.05308057633 | I14: =RATE(E11,C13,C11*(1-C12))*E12 -> 0.05308057633

Sheet EFFECT
A1: =ROW()&")" -> 1) | B1: Effective Interest Rate is always higher than APR or Nominal Rate when the compounding periods per year are greater than 1. Why? Because you are earning interest on interest.
A2: =ROW()&")" -> 2) | B2: =EFFECT(nominal_rate means APR or Nominal Rate (APR = NOMINAL RATE = period interest rate * number of compounding periods in 1 year), npery means "number of compounding periods in 1 year")
A3: =ROW()&")" -> 3) | B3: Cash Flow matters in Finance. Cash going out of the wallet is negative. Cash coming into the wallet is positive.
A4: =ROW()&")" -> 4) | B4: For the borrow the PV is positive, the PMT is negative, and the FV is negative. For the Lender the PV is negative, the PMT is positive, and the FV is positive.
A6: 1 | B6: Annual Interest Rate = APR = Nominal Rate | C6: 0.085 | E6: check
B7: Period Rate | E7: 100 | F7: Amount put in bank on day 1
B8: Periods per Year | C8: 12 | F8: =FV(C7,C8,,-E7)
B9: Effective Annual Rate | F9: =(1+C7)^C8*E7
B10: Effective Annual Rate | F10: =E7*(1+C10)

Sheet EFFECT (an)
A1: =ROW()&")" -> 1) | B1: Effective Interest Rate is always higher than APR or Nominal Rate when the compounding periods per year are greater than 1. Why? Because you are earning interest on interest.
A2: =ROW()&")" -> 2) | B2: =EFFECT(nominal_rate means APR or Nominal Rate (APR = NOMINAL RATE = period interest rate * number of compounding periods in 1 year), npery means "number of compounding periods in 1 year")
A3: =ROW()&")" -> 3) | B3: Cash Flow matters in Finance. Cash going out of the wallet is negative. Cash coming into the wallet is positive.
A4: =ROW()&")" -> 4) | B4: For the borrow the PV is positive, the PMT is negative, and the FV is negative. For the Lender the PV is negative, the PMT is positive, and the FV is positive.
A6: 1 | B6: Annual Interest Rate = APR = Nominal Rate | C6: 0.085 | E6: check
B7: Period Rate | C7: =C6/C8 -> 0.007083333333 | E7: 100 | F7: Amount put in bank on day 1
B8: Periods per Year | C8: 12 | E8: =FV(C7,C8,,-E7) -> 108.8390906 | F8: =FV(C7,C8,,-E7)
B9: Effective Annual Rate | C9: =(1+C7)^C8-1 -> 0.08839090589 | E9: =(1+C7)^C8*E7 -> 108.8390906 | F9: =(1+C7)^C8*E7
B10: Effective Annual Rate | C10: =EFFECT(C6,C8) -> 0.08839090589 | E10: =E7*(1+C10) -> 108.8390906 | F10: =E7*(1+C10)

Sheet NOMINAL & EFFECT & FV
A1: =ROW()&")" -> 1) | B1: APR = Annual Percentage Rate = NOMINAL RATE = period interest rate * number of compounding periods in 1 year. This is the rate usually calculated by the bank.
A2: 2) | B2: Effective Interest Rate is always higher than APR or Nominal Rate when the compounding periods per year are greater than . Why? Because you are earning interest on interest - The Effective Interest Rate tells you in percentage terms what the rate really is (You could multiply it plus 1 by the principal and get Future Value)
A3: 3) | B3: =EFFECT(APR or Nominal Rate, npery means "number of compounding periods in 1 year")
A4: 4) | B4: =NOMINAL(Effective Interest Rate), npery means "number of compounding periods in 1 year")
A5: 5) | B5: =FV(rate = period rate, nper = total number of periods, pmt means periodic payment, pv means amount invested or lent out today, type refers to the PMT: PMT at end of period = 0, PMT at beginning of period = 1)
A6: 6) | B6: Cash Flow matters in Finance. Cash going out of the wallet is negative. Cash coming into the wallet is positive.
A7: 7) | B7: For the borrow the PV is positive, the PMT is negative, and the FV is negative. For the Lender the PV is negative, the PMT is positive, and the FV is positive.
A8: 8) | B8: Be consistent with your unit of time! If you are calculating monthly payment, you need monthly interest rate and total number of months! (The period can be monthly, quarterly, yearly or any other length).
A10: 1 | B10: ="Savings Plan that compounds interest "&C13&" times a year, but you put money in "&C18&" times a year." -> Savings Plan that compounds interest 365 times a year, but you put money in 12 times a year.
B11: Monthly PMT = | C11: -250
B12: x = years | C12: 25
B13: n for account is = | C13: 365
B14: APR = i = | C14: 0.08
B15: Type= 0 or 1 ==> | C15: 0
F16: check
B17: Solve for EAR first = | F17: =(1+C14/C13)^C13-1 -> 0.08327757179
B18: n for PMT = | C18: 12
B19: Then from EAR, find APR (i) ==>
B20: Then from APR (i), find period Rate ==>
B21: Solve for Future Value =
B23: =IF(C21="","","If we have a Savings Plan that compounds interest "&C13&" times a year, but we put "&DOLLAR(-C11)&" in only "&C18&" times a year, the Future Value would be "&DOLLAR(C21)&".") -> 
A26: 2 | B26: MoneyTreeLoaning will:
B27: ="Allow you to write a check that has a date "&C29&" days in the future for "&DOLLAR(C30,0)&" and will give you "&DOLLAR(C31,0)&" today (they cash check in "&C29&" days)." -> Allow you to write a check that has a date 25 days in the future for $250 and will give you $200 today (they cash check in 25 days).
B28: What is the APR and EAR?
B29: Days in Future = | C29: 25
B30: Check Amount = | C30: 250 | E30: FV
B31: You get Today = | C31: 200 | E31: PV
B32: =C29&" day rate is =" -> 25 day rate is =
B33: Days in Year = | C33: 365
B34: ="# of "&C29&" day periods in 1 year =" -> # of 25 day periods in 1 year =
B35: APR =
B36: EAR = | D36: <== correct because math formula does not truncate to an integer
B38: EAR = | D38: <== Incorrect because the EFFECT function truncates npery to an integer
B40: Excel Help:
B41: Npery is truncated to an integer.
B42: If either argument is nonnumeric, EFFECT returns the #VALUE! error value.
B43: If nominal_rate ≤ 0 or if npery < 1, EFFECT returns the #NUM! error value.
B44: EFFECT is calculated as follows:

Sheet NOMINAL & EFFECT & FV (an)
A1: =ROW()&")" -> 1) | B1: APR = Annual Percentage Rate = NOMINAL RATE = period interest rate * number of compounding periods in 1 year. This is the rate usually calculated by the bank.
A2: 2) | B2: Effective Interest Rate is always higher than APR or Nominal Rate when the compounding periods per year are greater than . Why? Because you are earning interest on interest - The Effective Interest Rate tells you in percentage terms what the rate really is (You could multiply it plus 1 by the principal and get Future Value)
A3: 3) | B3: =EFFECT(APR or Nominal Rate, npery means "number of compounding periods in 1 year")
A4: 4) | B4: =NOMINAL(Effective Interest Rate), npery means "number of compounding periods in 1 year")
A5: 5) | B5: =FV(rate = period rate, nper = total number of periods, pmt means periodic payment, pv means amount invested or lent out today, type refers to the PMT: PMT at end of period = 0, PMT at beginning of period = 1)
A6: 6) | B6: Cash Flow matters in Finance. Cash going out of the wallet is negative. Cash coming into the wallet is positive.
A7: 7) | B7: For the borrow the PV is positive, the PMT is negative, and the FV is negative. For the Lender the PV is negative, the PMT is positive, and the FV is positive.
A8: 8) | B8: Be consistent with your unit of time! If you are calculating monthly payment, you need monthly interest rate and total number of months! (The period can be monthly, quarterly, yearly or any other length).
A10: 1 | B10: ="Savings Plan that compounds interest "&C13&" times a year, but you put money in "&C18&" times a year." -> Savings Plan that compounds interest 365 times a year, but you put money in 12 times a year.
B11: Monthly PMT = | C11: -250
B12: x = years | C12: 25
B13: n for account is = | C13: 365
B14: APR = i = | C14: 0.08
B15: Type= 0 or 1 ==> | C15: 0
F16: check
B17: Solve for EAR first = | C17: =EFFECT(C14,C13) -> 0.08327757179 | F17: =(1+C14/C13)^C13-1 -> 0.08327757179
B18: n for PMT = | C18: 12
B19: Then from EAR, find APR (i) ==> | C19: =NOMINAL(C17,C18) -> 0.08025843577
B20: Then from APR (i), find period Rate ==> | C20: =C19/C18 -> 0.006688202981
B21: Solve for Future Value = | C21: =FV(C20,C12*C18,C11) -> 238757.5935
B23: =IF(C21="","","If we have a Savings Plan that compounds interest "&C13&" times a year, but we put "&DOLLAR(-C11)&" in only "&C18&" times a year, the Future Value would be "&DOLLAR(C21)&".") -> If we have a Savings Plan that compounds interest 365 times a year, but we put $250.00 in only 12 times a year, the Future Value would be $238,757.59.
A26: 2 | B26: MoneyTreeLoaning will:
B27: ="Allow you to write a check that has a date "&C29&" days in the future for "&DOLLAR(C30,0)&" and will give you "&DOLLAR(C31,0)&" today (they cash check in "&C29&" days)." -> Allow you to write a check that has a date 25 days in the future for $250 and will give you $200 today (they cash check in 25 days).
B28: What is the APR and EAR?
B29: Days in Future = | C29: 25
B30: Check Amount = | C30: 250 | E30: FV
B31: You get Today = | C31: 200 | E31: PV
B32: =C29&" day rate is =" -> 25 day rate is = | C32: =C30/C31-1 -> 0.25
B33: Days in Year = | C33: 365
B34: ="# of "&C29&" day periods in 1 year =" -> # of 25 day periods in 1 year = | C34: =C33/C29 -> 14.6
B35: APR = | C35: =C32*C34 -> 3.65
B36: EAR = | C36: =(1+C32)^C34-1 -> 24.99478261 | D36: <== correct because math formula does not truncate to an integer
B38: EAR = | C38: =EFFECT(C35,C34) -> 24.62320414 | D38: <== Incorrect because the EFFECT function truncates npery to an integer
B40: Excel Help:
B41: Npery is truncated to an integer.
B42: If either argument is nonnumeric, EFFECT returns the #VALUE! error value.
B43: If nominal_rate ≤ 0 or if npery < 1, EFFECT returns the #NUM! error value.
B44: EFFECT is calculated as follows:

Sheet NPER
A1: =ROW()&")" -> 1) | B1: NPER function calculates the = total number of periods = Years*Number of compounding periods per year. Example 30 year loan compounded 12 times a year ==> 12*30 = 360 = Total periods.
A2: =ROW()&")" -> 2) | B2: =NPER(rate = period Rate, pmt means periodic payment, pv means amount invested or lent out today, fv means amount received after all the periods have elapsed or amount paid after all the periods have elapsed, type refers to the pmt: pmt at end of period = 0, pmt at beginning of period = 1)
A3: =ROW()&")" -> 3) | B3: Be consistent with your unit of time! If you are calculating monthly payment, you need monthly interest rate and total number of months! (The period can be monthly, quarterly, yearly or any other length).
A4: =ROW()&")" -> 4) | B4: Cash Flow matters in Finance. Cash going out of the wallet is negative. Cash coming into the wallet is positive.
A5: =ROW()&")" -> 5) | B5: For the borrow the PV is positive, the PMT is negative, and the FV is negative. For the Lender the PV is negative, the PMT is positive, and the FV is positive.
B7: How long to pay off your credit Card if you pay only the minimum PMT required?
B8: Balance = PV = | C8: 2000
B9: APR = i = | C9: 0.18 | E9: Type
B10: n = | C10: 12 | E10: 0
B11: Minimum Monthly PMT = | C11: 41
B12: n*x = NPER function =
B13: x = n*x/n = years
B14: Words: | C14: =IF(C13="","","It will take "&C13&" years to pay off the credit card if we make only the minimum payment each period.") -> 

Sheet NPER (an)
A1: =ROW()&")" -> 1) | B1: NPER function calculates the = total number of periods = Years*Number of compounding periods per year. Example 30 year loan compounded 12 times a year ==> 12*30 = 360 = Total periods.
A2: =ROW()&")" -> 2) | B2: =NPER(rate = period Rate, pmt means periodic payment, pv means amount invested or lent out today, fv means amount received after all the periods have elapsed or amount paid after all the periods have elapsed, type refers to the pmt: pmt at end of period = 0, pmt at beginning of period = 1)
A3: =ROW()&")" -> 3) | B3: Be consistent with your unit of time! If you are calculating monthly payment, you need monthly interest rate and total number of months! (The period can be monthly, quarterly, yearly or any other length).
A4: =ROW()&")" -> 4) | B4: Cash Flow matters in Finance. Cash going out of the wallet is negative. Cash coming into the wallet is positive.
A5: =ROW()&")" -> 5) | B5: For the borrow the PV is positive, the PMT is negative, and the FV is negative. For the Lender the PV is negative, the PMT is positive, and the FV is positive.
B7: How long to pay off your credit Card if you pay only the minimum PMT required?
B8: Balance = PV = | C8: 2000
B9: APR = i = | C9: 0.18 | E9: Type
B10: n = | C10: 12 | E10: 0
B11: Minimum Monthly PMT = | C11: 41
B12: n*x = NPER function = | C12: =NPER(C9/C10,-C11,C8) -> 88.36799228
B13: x = n*x/n = years | C13: =C12/C10 -> 7.363999357
B14: Words: | C14: =IF(C13="","","It will take "&C13&" years to pay off the credit card if we make only the minimum payment each period.") -> It will take 7.36399935665702 years to pay off the credit card if we make only the minimum payment each period.

Sheet Loan Analysis
A1: =ROW()&")" -> 1) | B1: PMT means periodic payment (same amount each period)
A2: 2) | B2: PMT function calculates the period payment for a loan (For the Borrower or the Lender). The Amount of each PMT must be the same and the time between each PMT must be the same.
A3: 3) | B3: Cash Flow matters in Finance. Cash going out of the wallet is negative. Cash coming into the wallet is positive.
A4: 4) | B4: For the borrow the PV is positive, the PMT is negative, and the FV is negative. For the Lender the PV is negative, the PMT is positive, and the FV is positive.
A5: 5) | B5: Be consistent with your unit of time! If you are calculating monthly payment, you need monthly interest rate and total number of months! (The period can be monthly, quarterly, yearly or any other length).
A6: 6) | B6: =PMT(rate = period rate, nper = total number of periods, pv means amount invested or lent out today, fv means amount received after all the periods have elapsed or amount paid after all the periods have elapsed, type refers to the PMT: PMT at end of period = 0, PMT at beginning of period = 1)
A7: =ROW()&")" -> 7) | B7: =RATE(nper = total number of periods, pmt means periodic payment, pv means amount invested or lent out today, fv means amount received after all the periods have elapsed or amount paid after all the periods have elapsed, type refers to the pmt: pmt at end of period = 0, pmt at beginning of period = 1)
B9: Loan Comparison
B10: Option# | C10: % Down Payment | D10: APR | E10: Years | F10: Points | G10: Extra Fee | H10: Amount to Borrow | I10: Monthly Payment | J10: Actual Cash Received | K10: Adjusted APR | L10: PMT w Balloon
B11: 1 | C11: 0.05 | D11: 0.085 | E11: 30 | F11: 1 | G11: 400
B12: 2 | C12: 0.15 | D12: 0.0825 | E12: 30 | F12: 3 | G12: 400
B13: 3 | C13: 0.045 | D13: 0.089 | E13: 30 | F13: 1 | G13: 450
B14: 4 | C14: 0.12 | D14: 0.09 | E14: 30 | F14: 2 | G14: 100
B15: 5 | C15: 0.15 | D15: 0.085 | E15: 30 | F15: 2 | G15: 125
B16: 6 | C16: 0.2 | D16: 0.08 | E16: 15 | F16: 0 | G16: 500
B17: 7 | C17: 0.15 | D17: 0.076 | E17: 15 | F17: 1 | G17: 750
B19: Price | G19: 430000
B20: Compounding Periods per year | G20: 12
B21: Balloon Payment (Optional) | G21: -50000

Sheet Loan Analysis (an)
A1: =ROW()&")" -> 1) | B1: PMT means periodic payment (same amount each period)
A2: 2) | B2: PMT function calculates the period payment for a loan (For the Borrower or the Lender). The Amount of each PMT must be the same and the time between each PMT must be the same.
A3: 3) | B3: Cash Flow matters in Finance. Cash going out of the wallet is negative. Cash coming into the wallet is positive.
A4: 4) | B4: For the borrow the PV is positive, the PMT is negative, and the FV is negative. For the Lender the PV is negative, the PMT is positive, and the FV is positive.
A5: 5) | B5: Be consistent with your unit of time! If you are calculating monthly payment, you need monthly interest rate and total number of months! (The period can be monthly, quarterly, yearly or any other length).
A6: 6) | B6: =PMT(rate = period rate, nper = total number of periods, pv means amount invested or lent out today, fv means amount received after all the periods have elapsed or amount paid after all the periods have elapsed, type refers to the PMT: PMT at end of period = 0, PMT at beginning of period = 1)
A7: =ROW()&")" -> 7) | B7: =RATE(nper = total number of periods, pmt means periodic payment, pv means amount invested or lent out today, fv means amount received after all the periods have elapsed or amount paid after all the periods have elapsed, type refers to the pmt: pmt at end of period = 0, pmt at beginning of period = 1)
B9: Loan Comparison
B10: Option# | C10: % Down Payment | D10: APR | E10: Years | F10: Points | G10: Extra Fee | H10: Amount to Borrow | I10: Monthly Payment | J10: Actual Cash Received | K10: Adjusted APR | L10: PMT w Balloon
B11: 1 | C11: 0.05 | D11: 0.085 | E11: 30 | F11: 1 | G11: 400 | H11: =G$19*(1-C11) -> 408500 | I11: =PMT(D11/G$20,E11*G$20,H11) -> -3141.01158 | J11: =H11*(1-F11/100)-G11 -> 404015 | K11: =RATE(E11*G$20,I11,J11)*G$20 -> 0.08620214028 | L11: =PMT(D11/G$20,E11*G$20,H11,G$21) -> -3110.721505
B12: 2 | C12: 0.15 | D12: 0.0825 | E12: 30 | F12: 3 | G12: 400 | H12: =G$19*(1-C12) -> 365500 | I12: =PMT(D12/G$20,E12*G$20,H12) -> -2745.879438 | J12: =H12*(1-F12/100)-G12 -> 354135 | K12: =RATE(E12*G$20,I12,J12)*G$20 -> 0.08591063297 | L12: =PMT(D12/G$20,E12*G$20,H12,G$21) -> -2713.996136
B13: 3 | C13: 0.045 | D13: 0.089 | E13: 30 | F13: 1 | G13: 450 | H13: 410650 | I13: -3274.678323 | J13: 406093.5 | K13: 0.09024489074 | L13: -3246.792757
B14: 4 | C14: 0.12 | D14: 0.09 | E14: 30 | F14: 2 | G14: 100 | H14: 378400 | I14: -3044.691983 | J14: 370732 | K14: 0.09230530856 | L14: -3017.380674
B15: 5 | C15: 0.15 | D15: 0.085 | E15: 30 | F15: 2 | G15: 125 | H15: 365500 | I15: -2810.378783 | J15: 358065 | K15: 0.08724494902 | L15: -2780.088707
B16: 6 | C16: 0.2 | D16: 0.08 | E16: 15 | F16: 0 | G16: 500 | H16: 344000 | I16: -3287.44317 | J16: 343500 | K16: 0.08024086862 | L16: -3142.950461
B17: 7 | C17: 0.15 | D17: 0.076 | E17: 15 | F17: 1 | G17: 750 | H17: 365500 | I17: -3409.033492 | J17: 361095 | K17: 0.07798956738 | L17: -3259.348108
B19: Price | G19: 430000
B20: Compounding Periods per year | G20: 12
B21: Balloon Payment (Optional) | G21: -50000

Sheet PV & NPV & XNPV
A1: =ROW()&")" -> 1) | B1: Preset Value = How much future cash flows are worth today. Think of it as interest going backwards; if we put money in the bank today (present value) it will be worth some future value amount in the future: Present Value is the Opposite! We want to receive some cash amounts in the future, what amount do we have to put in the bank today?
A2: 2) | B2: PV function calculates present Value when the cash flows are the same and are separated by regular time periods. NPV function lets us calculate the present value when the amounts are not the same. XNPV function lets us calculate the present value when the amounts are not the same and the times are not the same.
A3: 3) | B3: =PV( rate, nper, fv, type) | D3: When an asset has an annuity cash flow pattern, you can use the PV function for Capital Investment Decision. An annuity has equal payments at equal time intervals.
A4: 4) | B4: =NPV( rate, CF1, CF2…. (as range or cells separated by commas). NOTE: You cannot include Cash Flow at time 0. | D4: Calculates the net present value for a series of cash flows that is periodic (equal time between each cash flow)
A5: 5) | B5: =XNPV(rate, values, dates) NOTE: you can include Cash Flow at time 0. | D5: Returns the net present value for a schedule of cash flows that is not necessarily periodic. To calculate the net present value for a series of cash flows that is periodic, use the NPV function.
A6: 6) | B6: Cash Flow matters in Finance. Cash going out of the wallet is negative. Cash coming into the wallet is positive.
A7: 7) | B7: For the borrow the PV is positive, the PMT is negative, and the FV is negative. For the Lender the PV is negative, the PMT is positive, and the FV is positive.
A8: 8) | B8: Be consistent with your unit of time! If you are calculating monthly payment, you need monthly interest rate and total number of months! (The period can be monthly, quarterly, yearly or any other length).
A11: 1 | B11: ="You are considering buying a machine that will yield "&DOLLAR(C13)&" net cash flow in for the next ten years. If you must earn a minimum return on investment of "&TEXT(C14,"00.00%")&", should we buy a machine if it costs "&DOLLAR(C15)&"?" -> You are considering buying a machine that will yield $35,000.00 net cash flow in for the next ten years. If you must earn a minimum return on investment of 15.00%, should we buy a machine if it costs ($165,500.00)?
B13: Net Cash Flow at end of each year = | C13: 35000
B14: Min Return (hurdle rate or Discount Rate) = | C14: 0.15
B15: Cost = | C15: -165500
B16: Years | C16: 10
B17: PV =
B18: Difference =
B19: NPV = | E19: NPV =
A21: 2 | B21: Period | C21: CF | E21: CF
B22: 0 | E22: =C15 -> -165500
B23: 1 | C23: =C$13 -> 35000 | E23: 40000
B24: 2 | C24: 35000 | E24: 40000
B25: 3 | C25: 35000 | E25: 40000
B26: 4 | C26: 35000 | E26: 35000
B27: 5 | C27: 35000 | E27: 35000
B28: 6 | C28: 35000 | E28: 35000
B29: 7 | C29: 35000 | E29: 20000
B30: 8 | C30: 35000 | E30: 10000
B31: 9 | C31: 35000 | E31: 50000
B32: 10 | C32: 35000 | E32: 2500
A34: 3 | B34: RRR | C34: 0.15
B36: Date | C36: Year | D36: CF | E36: PV function | F36: XNPV algorithm | G36: XNPV
B37: 2007-01-01 | C37: 0 | D37: -500 | E37: =PV(C$34,C37,,-D37) -> -500 | F37: =D37/(1+$C$34)^(ABS(B$37-B37)/365) -> -500
B38: 2008-01-01 | C38: 1 | D38: 200 | E38: 173.9130435 | F38: 173.9130435
B39: 2010-01-01 | C39: 3 | D39: 100 | E39: 65.75162324 | F39: 65.72645115
B40: 2011-01-01 | C40: 4 | D40: 100 | E40: 57.17532456 | F40: 57.15343578
B41: 2012-01-01 | C41: 5 | D41: 100 | E41: 49.71767353 | F41: 49.69863981
B42: 2013-01-01 | C42: 6 | D42: 100 | E42: 43.23275959 | F42: 43.1996638
E43: =SUM(E37:E42) -> -110.2095756 | F43: =SUM(F37:F42) -> -110.308766
B45: 2009-01-01
B46: =B45-B38 -> 366

Sheet PV & NPV & XNPV (an)
A1: =ROW()&")" -> 1) | B1: Preset Value = How much future cash flows are worth today. Think of it as interest going backwards; if we put money in the bank today (present value) it will be worth some future value amount in the future: Present Value is the Opposite! We want to receive some cash amounts in the future, what amount do we have to put in the bank today?
A2: 2) | B2: PV function calculates present Value when the cash flows are the same and are separated by regular time periods. NPV function lets us calculate the present value when the amounts are not the same. XNPV function lets us calculate the present value when the amounts are not the same and the times are not the same.
A3: 3) | B3: =PV( rate, nper, fv, type) | D3: When an asset has an annuity cash flow pattern, you can use the PV function for Capital Investment Decision. An annuity has equal payments at equal time intervals.
A4: 4) | B4: =NPV( rate, CF1, CF2…. (as range or cells separated by commas). NOTE: You cannot include Cash Flow at time 0. | D4: Calculates the net present value for a series of cash flows that is periodic (equal time between each cash flow)
A5: 5) | B5: =XNPV(rate, values, dates) NOTE: you can include Cash Flow at time 0. | D5: Returns the net present value for a schedule of cash flows that is not necessarily periodic. To calculate the net present value for a series of cash flows that is periodic, use the NPV function.
A6: 6) | B6: Cash Flow matters in Finance. Cash going out of the wallet is negative. Cash coming into the wallet is positive.
A7: 7) | B7: For the borrow the PV is positive, the PMT is negative, and the FV is negative. For the Lender the PV is negative, the PMT is positive, and the FV is positive.
A8: 8) | B8: Be consistent with your unit of time! If you are calculating monthly payment, you need monthly interest rate and total number of months! (The period can be monthly, quarterly, yearly or any other length).
A11: 1 | B11: ="You are considering buying a machine that will yield "&DOLLAR(C13)&" net cash flow in for the next ten years. If you must earn a minimum return on investment of "&TEXT(C14,"00.00%")&", should we buy a machine if it costs "&DOLLAR(C15)&"?" -> You are considering buying a machine that will yield $35,000.00 net cash flow in for the next ten years. If you must earn a minimum return on investment of 15.00%, should we buy a machine if it costs ($165,500.00)?
B13: Net Cash Flow at end of each year = | C13: 35000
B14: Min Return (hurdle rate or Discount Rate) = | C14: 0.15
B15: Cost = | C15: -165500
B16: Years | C16: 10
B17: PV = | C17: =PV(C14,C16,C13) -> -175656.9019
B18: Difference = | C18: =C15-C17 -> 10156.9019
B19: NPV = | C19: =NPV(C14,C23:C32)+C15 -> 10156.9019 | E19: NPV = | F19: =NPV(C14,E23:E32)+E22 -> 3991.860777
A21: 2 | B21: Period | C21: CF | E21: CF
B22: 0 | E22: =C15 -> -165500
B23: 1 | C23: =C$13 -> 35000 | E23: 40000
B24: 2 | C24: 35000 | E24: 40000
B25: 3 | C25: 35000 | E25: 40000
B26: 4 | C26: 35000 | E26: 35000
B27: 5 | C27: 35000 | E27: 35000
B28: 6 | C28: 35000 | E28: 35000
B29: 7 | C29: 35000 | E29: 20000
B30: 8 | C30: 35000 | E30: 10000
B31: 9 | C31: 35000 | E31: 50000
B32: 10 | C32: 35000 | E32: 2500
A34: 3 | B34: RRR | C34: 0.15
B36: Date | C36: Year | D36: CF | E36: PV function | F36: XNPV algorithm | G36: XNPV
B37: 2007-01-01 | C37: 0 | D37: -500 | E37: =PV(C$34,C37,,-D37) -> -500 | F37: =D37/(1+$C$34)^(ABS(B$37-B37)/365) -> -500 | G37: =[0]!_xludf._xlfn.BAHTTEXT(C34,D37:D42,B37:B42) -> 
B38: 2008-01-01 | C38: 1 | D38: 200 | E38: 173.9130435 | F38: 173.9130435
B39: 2010-01-01 | C39: 3 | D39: 100 | E39: 65.75162324 | F39: 65.72645115
B40: 2011-01-01 | C40: 4 | D40: 100 | E40: 57.17532456 | F40: 57.15343578
B41: 2012-01-01 | C41: 5 | D41: 100 | E41: 49.71767353 | F41: 49.69863981
B42: 2013-01-01 | C42: 6 | D42: 100 | E42: 43.23275959 | F42: 43.1996638
E43: =SUM(E37:E42) -> -110.2095756 | F43: =SUM(F37:F42) -> -110.308766
B45: 2009-01-01
B46: =B45-B38 -> 366

Sheet Retirement
A1: =ROW()&")" -> 1) | B1: FV function calculates the future value of a lump sum (invested at very beginning) or regular payments (called PMT and amount is the same for each period and the amount is always the same).
A2: 2) | B2: PMT means periodic payment (same amount each period)
A3: 3) | B3: PMT function calculates the period payment for a loan (For the Borrower or the Lender). The Amount of each PMT must be the same and the time between each PMT must be the same.
A4: 4) | B4: Cash Flow matters in Finance. Cash going out of the wallet is negative. Cash coming into the wallet is positive. Time period Matters in Finance: Example - if you are making monthly payments, then total number of periods must be total number of months.
A5: 5) | B5: For the borrow the PV is positive, the PMT is negative, and the FV is negative. For the Lender the PV is negative, the PMT is positive, and the FV is positive.
A6: 6) | B6: =FV(rate = period rate, nper = total number of periods, pmt means periodic payment, pv means amount invested or lent out today, type refers to the PMT: PMT at end of period = 0, PMT at beginning of period = 1)
A7: 7) | B7: =PMT(rate = period rate, nper = total number of periods, pv means amount invested or lent out today, fv means amount received after all the periods have elapsed or amount paid after all the periods have elapsed, type refers to the PMT: PMT at end of period = 0, PMT at beginning of period = 1)
B9: Monthly PMT (end) | C9: -100 | E9: Amount put in
B10: years | C10: 30 | E10: Amount taken out
B11: Months | E11: Interest
B12: Annual Rate | C12: 0.09 | F12: .
B13: Monthly Rate
B14: FV
B16: PV
B17: years | C17: 35
B18: Months
B19: Annual Rate | C19: 0.07
B20: Monthly Rate
B21: Monthly PMT (begin)
B22: Leave to Kids | C22: 250000

Sheet Retirement (an)
A1: =ROW()&")" -> 1) | B1: FV function calculates the future value of a lump sum (invested at very beginning) or regular payments (called PMT and amount is the same for each period and the amount is always the same).
A2: 2) | B2: PMT means periodic payment (same amount each period)
A3: 3) | B3: PMT function calculates the period payment for a loan (For the Borrower or the Lender). The Amount of each PMT must be the same and the time between each PMT must be the same.
A4: 4) | B4: Cash Flow matters in Finance. Cash going out of the wallet is negative. Cash coming into the wallet is positive. Time period Matters in Finance: Example - if you are making monthly payments, then total number of periods must be total number of months.
A5: 5) | B5: For the borrow the PV is positive, the PMT is negative, and the FV is negative. For the Lender the PV is negative, the PMT is positive, and the FV is positive.
A6: 6) | B6: =FV(rate = period rate, nper = total number of periods, pmt means periodic payment, pv means amount invested or lent out today, type refers to the PMT: PMT at end of period = 0, PMT at beginning of period = 1)
A7: 7) | B7: =PMT(rate = period rate, nper = total number of periods, pv means amount invested or lent out today, fv means amount received after all the periods have elapsed or amount paid after all the periods have elapsed, type refers to the PMT: PMT at end of period = 0, PMT at beginning of period = 1)
B9: Monthly PMT (end) | C9: -100 | E9: Amount put in | F9: =-C9*C11 -> 36000
B10: years | C10: 30 | E10: Amount taken out | F10: =C21*C18+C22 -> 680414.5602
B11: Months | C11: =C10*12 -> 360 | E11: Interest | F11: =F10-F9 -> 644414.5602
B12: Annual Rate | C12: 0.09 | F12: .
B13: Monthly Rate | C13: =C12/12 -> 0.0075
B14: FV | C14: =FV(C13,C11,C9) -> 183074.3483
B16: PV | C16: =-C14 -> -183074.3483
B17: years | C17: 35
B18: Months | C18: =C17*12 -> 420
B19: Annual Rate | C19: 0.07
B20: Monthly Rate | C20: =C19/12 -> 0.005833333333
B21: Monthly PMT (begin) | C21: =PMT(C20,C18,C16,C22,1) -> 1024.796572
B22: Leave to Kids | C22: 250000
